Workbook

Sheet ##BASEINFO (hidden)
G1: 001 | H1: IB | I1: 基础信息表
A2: 期间名称 | B2: 2024年 | G2: 002 | H2: ML | I2: 简表目录
A3: 单位体系编码 | B3: ZJS001DW | G3: 004 | H3: JB01 | I3: 一般公共预算收支总表
A4: 单位编码 | B4: 00902290099001 | G4: 005 | H4: JB02 | I4: 一般公共预算收入明细表
A5: 上级单位编码 | B5: 00902290099 | G5: 003 | H5: JB03 | I5: 政府性基金预算收支总表
A6: 单位级次 | B6: 6 | G6: 008 | H6: JB04 | I6: 政府性基金预算收入明细表
A7: 单位全称 | B7: 沅江市 | G7: 006 | H7: JB05 | I7: 国有资本经营预算收支总表
A8: 单位简称 | B8: 沅江市 | G8: 009 | H8: JB06 | I8: 国有资本经营预算收入明细表
A9: 创建单位的级次 | B9: null | G9: 007 | H9: FB | I9: 地区间援助收支表
A10: 助记符 拼音首字母 | B10: 430981000KCAAAAAAAAAAAAAAAAAA001 | G10: 07 | H10: 07 | I10: 简表7
A11: 行政区划代码 | G11: 08 | H11: 08 | I11: 简表8
A12: 行政区划代码 | B12: 430981000 | G12: 09 | H12: 09 | I12: 简表9
A13: 行政区划类型 | G13: 010 | H13: 10 | I13: 简表10
A14: 财政区划代码 | B14: 430981000 | G14: 011 | H14: 11 | I14: 简表11
A15: 财政区划类型 | G15: 012 | H15: 12 | I15: 简表12
A16: 单位年度 | B16: 2024 | G16: 013 | H16: 13 | I16: 简表13
A17: 期间代码 | B17: 2024N | G17: 014 | H17: 14 | I17: 简表14
A18: 舍位状态 | B18: 0
A19: 数值单位 | B19: 万元

Sheet IB
A1: ='##BASEINFO'!$B$7 -> 沅江市
A2: ='##BASEINFO'!$B$2&"度简表基础信息表" -> 2024年度简表基础信息表
B5: 单位名称 | C5: 湖南省益阳市沅江市
B6: 单位负责人 | C6: 周武波
B7: 处（科、股）负责人 | C7: 李寒西
B8: 经办人 | C8: 张敏
B9: 联系电话 | C9: 07372608296
B10: 单位地址 | C10: 沅江市市治大院
B11: 单位邮编 | C11: 413100
B12: 单位级次 | C12: 区县级
B13: 所在地区类型 | C13: 省
B14: 地区属性 | C14: 中部
B15: 计划单列市属性 | C15: 无
B16: 自治州属性 | C16: 无
B17: 区县类型 | C17: 县(市)
B18: 贫困县 | C18: 否
B19: 自治县 | C19: 否
B20: 省直管县 | C20: 是
B21: 省直属县 | C21: 否
B22: 区域面积 | C22: 2129 | D22: (平方公里)
B23: 行政区划代码 | C23: 430981

Sheet ML
A1: 简 表 目 录
B3: 表号 | C3: 表名 | D3: 页码
B4: IB | C4: 简表基础信息表
B5: 简表01 | C5: 一般公共预算收支总表
B6: 简表02 | C6: 一般公共预算收入明细表
B7: 简表03 | C7: 政府性基金预算收支总表
B8: 简表04 | C8: 政府性基金预算收入明细表
B9: 简表05 | C9: 国有资本经营预算收支总表
B10: 简表06 | C10: 国有资本经营预算收入明细表
B11: 附表 | C11: 区域间转移性收支表

Sheet JB01
A1: ='##BASEINFO'!$B$2&"度"&'##BASEINFO'!$B$7&"一般公共预算收支总表" -> 2024年度沅江市一般公共预算收支总表
D2: 简表01表
D3: ="单位："&'##BASEINFO'!$B$19 -> 单位：万元
A4: 预算科目 | B4: 决算数 | C4: 预算科目 | D4: 决算数
A5: 一、税收收入 | B5: ='JB02'!C6 -> 80,803 | C5: 一、一般公共服务支出 | D5: 45,088
A6: 增值税 | B6: ='JB02'!C7 -> 26,850 | C6: 二、外交支出
A7: 企业所得税 | B7: ='JB02'!C65+'JB02'!C190 -> 3,125 | C7: 三、国防支出 | D7: 78
A8: 个人所得税 | B8: ='JB02'!C255 -> 1,130 | C8: 四、公共安全支出 | D8: 20,694
A9: 资源税 | B9: ='JB02'!C262 -> 8,347 | C9: 五、教育支出 | D9: 100,838
A10: 城市维护建设税 | B10: ='JB02'!C267 -> 4,691 | C10: 六、科学技术支出 | D10: 41,424
A11: 房产税 | B11: ='JB02'!C283 -> 6,057 | C11: 七、文化旅游体育与传媒支出 | D11: 3,796
A12: 印花税 | B12: ='JB02'!C292 -> 620 | C12: 八、社会保障和就业支出 | D12: 118,254
A13: 城镇土地使用税 | B13: ='JB02'!C298 -> 3,278 | C13: 九、卫生健康支出 | D13: 30,980
A14: 土地增值税 | B14: ='JB02'!C307 -> 4,170 | C14: 十、节能环保支出 | D14: 8,926
A15: 车船税 | B15: ='JB02'!C316 -> 1,788 | C15: 十一、城乡社区支出 | D15: 34,061
A16: 耕地占用税 | B16: ='JB02'!C337 -> 14,019 | C16: 十二、农林水支出 | D16: 118,089
A17: 契税 | B17: ='JB02'!C341 -> 6,649 | C17: 十三、交通运输支出 | D17: 16,145
A18: 烟叶税 | B18: ='JB02'!C344 -> 0 | C18: 十四、资源勘探工业信息等支出 | D18: 2,681
A19: 环境保护税 | B19: ='JB02'!C347 -> 79 | C19: 十五、商业服务业等支出 | D19: 3,492
A20: 其他税收收入 | B20: ='JB02'!C350+'JB02'!C45+'JB02'!C319+'JB02'!C322+'JB02'!C325 -> 0 | C20: 十六、金融支出 | D20: 241
A21: 二、非税收入 | B21: ='JB02'!C353 -> 81,241 | C21: 十七、援助其他地区支出
A22: 专项收入 | B22: ='JB02'!C354 -> 5,151 | C22: 十八、自然资源海洋气象等支出 | D22: 7,436
A23: 行政事业性收费收入 | B23: ='JB02'!C382 -> 4,850 | C23: 十九、住房保障支出 | D23: 16,342
A24: 罚没收入 | B24: ='JB02'!C576 -> 21,496 | C24: 二十、粮油物资储备支出 | D24: 6,183
A25: 国有资本经营收入 | B25: ='JB02'!C616 -> 0 | C25: 二十一、灾害防治及应急管理支出 | D25: 3,558
A26: 国有资源(资产)有偿使用收入 | B26: ='JB02'!C635 -> 45,617 | C26: 二十二、其他支出 | D26: 772
A27: 其他收入 | B27: ='JB02'!C686+'JB02'!C689+'JB02'!C695 -> 4,127 | C27: 二十三、债务付息支出 | D27: 11,858
C28: 其中:地方政府一般债券付息支出 | D28: 11,848
C29: 二十四、债务发行费用支出
A30: 本年收入合计 | B30: ='JB02'!C5 -> 162,044 | C30: 本年支出合计 | D30: =SUM(D5:D27,D29) -> 590,936

Sheet JB02
A1: ='##BASEINFO'!$B$2&"度"&'##BASEINFO'!$B$7&"一般公共预算收入明细表" -> 2024年度沅江市一般公共预算收入明细表
C2: 简表02表
C3: ="单位："&'##BASEINFO'!$B$19 -> 单位：万元
A4: 科目编码 | B4: 科目名称 | C4: 决算数
B5: 一般公共预算收入 | C5: =C6+C353 -> 162,044
A6: 101 | B6: 税收收入 | C6: =SUM(C7,C45,C65,C190,C255,C262,C267,C283,C292,C298,C307,C316,C319,C322,C325,C337,C341,C344,C347,C350) -> 80,803
A7: 10101 | B7: 增值税 | C7: =SUM(C8,C38,C42) -> 26,850
A8: 1010101 | B8: 国内增值税 | C8: =SUM(C9:C37) -> 26,850
A9: 101010101 | B9: 国有企业增值税 | C9: 1,927
A10: 101010102 | B10: 集体企业增值税 | C10: 2
A11: 101010103 | B11: 股份制企业增值税 | C11: 18,945
A12: 101010104 | B12: 联营企业增值税
A13: 101010105 | B13: 港澳台和外商投资企业增值税 | C13: 96
A14: 101010106 | B14: 私营企业增值税 | C14: 7,294
A15: 101010117 | B15: 中国国家铁路集团有限公司改征增值税待分配收入
A16: 101010118 | B16: 中国国家铁路集团有限公司改征增值税收入
A17: 101010119 | B17: 其他增值税 | C17: 356
A18: 101010120 | B18: 增值税税款滞纳金、罚款收入 | C18: 94
A19: 101010121 | B19: 残疾人就业增值税退税
A20: 101010122 | B20: 软件增值税退税
A21: 101010125 | B21: 宣传文化单位增值税退税
A22: 101010127 | B22: 核电站增值税退税
A23: 101010129 | B23: 资源综合利用增值税退税 | C23: -46
A24: 101010131 | B24: 黄金增值税退税
A25: 101010132 | B25: 光伏发电增值税退税
A26: 101010133 | B26: 风力发电增值税退税
A27: 101010134 | B27: 管道运输增值税退税
A28: 101010135 | B28: 融资租赁增值税退税
A29: 101010136 | B29: 增值税留抵退税 | C29: -886
A30: 101010137 | B30: 增值税留抵退税省级调库
A31: 101010138 | B31: 增值税留抵退税省级以下调库 | C31: -1,265
A32: 101010150 | B32: 其他增值税退税
A33: 101010151 | B33: 免抵调增增值税 | C33: 333
A34: 101010152 | B34: 成品油价格和税费改革增值税划出
A35: 101010153 | B35: 成品油价格和税费改革增值税划入
A36: 101010154 | B36: 跨省管道运输企业增值税
A37: 101010155 | B37: 跨省管道运输企业增值税待分配收入
A38: 1010102 | B38: 进口货物增值税(项) | C38: =SUM(C39:C41) -> 0
A39: 101010201 | B39: 进口货物增值税(目)
A40: 101010220 | B40: 进口货物增值税税款滞纳金、罚款收入
A41: 101010221 | B41: 进口货物退增值税
A42: 1010103 | B42: 出口业务退增值税(项) | C42: =SUM(C43:C44) -> 0
A43: 101010301 | B43: 出口业务退增值税(目)
A44: 101010302 | B44: 免抵调减增值税
A45: 10102 | B45: 消费税 | C45: =SUM(C46,C58,C64) -> 0
A46: 1010201 | B46: 国内消费税 | C46: =SUM(C47:C57) -> 0
A47: 101020101 | B47: 国有企业消费税
A48: 101020102 | B48: 集体企业消费税
A49: 101020103 | B49: 股份制企业消费税
A50: 101020104 | B50: 联营企业消费税
A51: 101020105 | B51: 港澳台和外商投资企业消费税
A52: 101020106 | B52: 私营企业消费税
A53: 101020107 | B53: 成品油消费税
A54: 101020119 | B54: 其他消费税
A55: 101020120 | B55: 消费税税款滞纳金、罚款收入
A56: 101020121 | B56: 成品油消费税退税
A57: 101020129 | B57: 其他消费税退税
A58: 1010202 | B58: 进口消费品消费税 | C58: =SUM(C59:C63) -> 0
A59: 101020202 | B59: 进口成品油消费税
A60: 101020209 | B60: 进口其他消费品消费税
A61: 101020220 | B61: 进口消费品消费税税款滞纳金、罚款收入
A62: 101020221 | B62: 进口成品油消费税退税
A63: 101020229 | B63: 进口其他消费品退消费税
A64: 1010203 | B64: 出口消费品退消费税
A65: 10104 | B65: 企业所得税 | C65: =SUM(C66:C82,C86:C91,C95,C100:C101,C105:C111,C128:C129,C132:C134,C139,C144,C149,C154,C159,C164,C169,C174,C179,C184,C188,C189) -> 3,125
A66: 1010401 | B66: 国有冶金工业所得税
A67: 1010402 | B67: 国有有色金属工业所得税
A68: 1010403 | B68: 国有煤炭工业所得税
A69: 1010404 | B69: 国有电力工业所得税
A70: 1010405 | B70: 国有石油和化学工业所得税
A71: 1010406 | B71: 国有机械工业所得税
A72: 1010407 | B72: 国有汽车工业所得税
A73: 1010408 | B73: 国有核工业所得税
A74: 1010409 | B74: 国有航空工业所得税
A75: 1010410 | B75: 国有航天工业所得税
A76: 1010411 | B76: 国有电子工业所得税
A77: 1010412 | B77: 国有兵器工业所得税
A78: 1010413 | B78: 国有船舶工业所得税
A79: 1010414 | B79: 国有建筑材料工业所得税
A80: 1010415 | B80: 国有烟草企业所得税
A81: 1010416 | B81: 国有纺织企业所得税
A82: 1010417 | B82: 国有铁道企业所得税 | C82: =SUM(C83:C85) -> 0
A83: 101041701 | B83: 中国国家铁路集团有限公司集中缴纳的铁路运输企业所得税
A84: 101041702 | B84: 中国国家铁路集团有限公司集中缴纳的铁路运输企业所得税待分配收入
A85: 101041709 | B85: 其他国有铁道企业所得税
A86: 1010418 | B86: 国有交通企业所得税
A87: 1010419 | B87: 国有邮政企业所得税
A88: 1010420 | B88: 国有民航企业所得税
A89: 1010421 | B89: 国有海洋石油天然气企业所得税
A90: 1010422 | B90: 国有外贸企业所得税
A91: 1010423 | B91: 国有银行所得税 | C91: =SUM(C92:C94) -> 0
A92: 101042303 | B92: 中国进出口银行所得税
A93: 101042304 | B93: 中国农业发展银行所得税
A94: 101042309 | B94: 其他国有银行所得税
A95: 1010424 | B95: 国有非银行金融企业所得税 | C95: =SUM(C96:C99) -> 0
A96: 101042402 | B96: 中国建银投资有限责任公司所得税
A97: 101042403 | B97: 中国投资有限责任公司所得税
A98: 101042404 | B98: 中投公司所属其他公司所得税
A99: 101042409 | B99: 其他国有非银行金融企业所得税
A100: 1010425 | B100: 国有保险企业所得税
A101: 1010426 | B101: 国有文教企业所得税 | C101: =SUM(C102:C104) -> 0
A102: 101042601 | B102: 国有电影企业所得税
A103: 101042602 | B103: 国有出版企业所得税
A104: 101042609 | B104: 其他国有文教企业所得税
A105: 1010427 | B105: 国有水产企业所得税
A106: 1010428 | B106: 国有森林工业企业所得税
A107: 1010429 | B107: 国有电信企业所得税
A108: 1010430 | B108: 国有农垦企业所得税
A109: 1010431 | B109: 其他国有企业所得税
A110: 1010432 | B110: 集体企业所得税 | C110: 471
A111: 1010433 | B111: 股份制企业所得税 | C111: =SUM(C112:C127) -> 997
A112: 101043302 | B112: 股份制海洋石油天然气企业所得税
A113: 101043303 | B113: 中国石油天然气股份有限公司所得税
A114: 101043304 | B114: 中国石油化工股份有限公司所得税
A115: 101043308 | B115: 中国工商银行股份有限公司所得税
A116: 101043309 | B116: 中国建设银行股份有限公司所得税
A117: 101043310 | B117: 中国银行股份有限公司所得税
A118: 101043312 | B118: 长江电力股份有限公司所得税
A119: 101043313 | B119: 中国农业银行股份有限公司所得税
A120: 101043314 | B120: 国家开发银行股份有限公司所得税
A121: 101043315 | B121: 中国邮政储蓄银行股份有限公司所得税
A122: 101043316 | B122: 中国信达资产管理股份有限公司所得税
A123: 101043317 | B123: 跨省合资铁路企业所得税
A124: 101043318 | B124: 中国华融资产管理股份有限公司所得税
A125: 101043319 | B125: 中国长城资产管理公司所得税
A126: 101043320 | B126: 中国东方资产管理公司所得税
A127: 101043399 | B127: 其他股份制企业所得税 | C127: 997
A128: 1010434 | B128: 联营企业所得税
A129: 1010435 | B129: 港澳台和外商投资企业所得税 | C129: =SUM(C130:C131) -> 27
A130: 101043501 | B130: 港澳台和外商投资海上石油天然气企业所得税
A131: 101043509 | B131: 其他港澳台和外商投资企业所得税 | C131: 27
A132: 1010436 | B132: 私营企业所得税 | C132: 1,604
A133: 1010439 | B133: 其他企业所得税 | C133: 3
A134: 1010440 | B134: 分支机构预缴所得税 | C134: =SUM(C135:C138) -> 15
A135: 101044001 | B135: 国有企业分支机构预缴所得税 | C135: 14
A136: 101044002 | B136: 股份制企业分支机构预缴所得税
A137: 101044003 | B137: 港澳台和外商投资企业分支机构预缴所得税
A138: 101044099 | B138: 其他企业分支机构预缴所得税 | C138: 1
A139: 1010441 | B139: 总机构预缴所得税 | C139: =SUM(C140:C143) -> 0
A140: 101044101 | B140: 国有企业总机构预缴所得税
A141: 101044102 | B141: 股份制企业总机构预缴所得税
A142: 101044103 | B142: 港澳台和外商投资企业总机构预缴所得税
A143: 101044199 | B143: 其他企业总机构预缴所得税
A144: 1010442 | B144: 总机构汇算清缴所得税 | C144: =SUM(C145:C148) -> 0
A145: 101044201 | B145: 国有企业总机构汇算清缴所得税
A146: 101044202 | B146: 股份制企业总机构汇算清缴所得税
A147: 101044203 | B147: 港澳台和外商投资企业总机构汇算清缴所得税
A148: 101044299 | B148: 其他企业总机构汇算清缴所得税
A149: 1010443 | B149: 企业所得税待分配收入 | C149: =SUM(C150:C153) -> 0
A150: 101044301 | B150: 国有企业所得税待分配收入
A151: 101044302 | B151: 股份制企业所得税待分配收入
A152: 101044303 | B152: 港澳台和外商投资企业所得税待分配收入
A153: 101044399 | B153: 其他企业所得税待分配收入
A154: 1010444 | B154: 跨市县分支机构预缴所得税 | C154: =SUM(C155:C158) -> 0
A155: 101044401 | B155: 国有企业分支机构预缴所得税
A156: 101044402 | B156: 股份制企业分支机构预缴所得税
A157: 101044403 | B157: 港澳台和外商投资企业分支机构预缴所得税
A158: 101044499 | B158: 其他企业分支机构预缴所得税
A159: 1010445 | B159: 跨市县总机构预缴所得税 | C159: =SUM(C160:C163) -> 0
A160: 101044501 | B160: 国有企业总机构预缴所得税
A161: 101044502 | B161: 股份制企业总机构预缴所得税
A162: 101044503 | B162: 港澳台和外商投资企业总机构预缴所得税
A163: 101044599 | B163: 其他企业总机构预缴所得税
A164: 1010446 | B164: 跨市县总机构汇算清缴所得税 | C164: =SUM(C165:C168) -> 0
A165: 101044601 | B165: 国有企业总机构汇算清缴所得税
A166: 101044602 | B166: 股份制企业总机构汇算清缴所得税
A167: 101044603 | B167: 港澳台和外商投资企业总机构汇算清缴所得税
A168: 101044699 | B168: 其他企业总机构汇算清缴所得税
A169: 1010447 | B169: 省以下企业所得税待分配收入 | C169: =SUM(C170:C173) -> 0
A170: 101044701 | B170: 国有企业所得税待分配收入
A171: 101044702 | B171: 股份制企业所得税待分配收入
A172: 101044703 | B172: 港澳台和外商投资企业所得税待分配收入
A173: 101044799 | B173: 其他企业所得税待分配收入
A174: 1010448 | B174: 跨市县分支机构汇算清缴所得税 | C174: =SUM(C175:C178) -> 0
A175: 101044801 | B175: 国有企业分支机构汇算清缴所得税
A176: 101044802 | B176: 股份制企业分支机构汇算清缴所得税
A177: 101044803 | B177: 港澳台和外商投资企业分支机构汇算清缴所得税
A178: 101044899 | B178: 其他企业分支机构汇算清缴所得税
A179: 1010449 | B179: 分支机构汇算清缴所得税 | C179: =SUM(C180:C183) -> 0
A180: 101044901 | B180: 国有企业分支机构汇算清缴所得税
A181: 101044902 | B181: 股份制企业分支机构汇算清缴所得税
A182: 101044903 | B182: 港澳台和外商投资企业分支机构汇算清缴所得税
A183: 101044999 | B183: 其他企业分支机构汇算清缴所得税
A184: 1010450 | B184: 企业所得税税款滞纳金、罚款、加收利息收入 | C184: =SUM(C185:C187) -> 8
A185: 101045001 | B185: 内资企业所得税税款滞纳金、罚款、加收利息收入 | C185: 8
A186: 101045002 | B186: 港澳台和外商投资企业所得税税款滞纳金、罚款、加收利息收入
A187: 101045003 | B187: 中央企业所得税税款滞纳金、罚款、加收利息收入
A188: 1010451 | B188: 跨省管道运输企业所得税
A189: 1010452 | B189: 跨省管道运输企业所得税待分配收入
A190: 10105 | B190: 企业所得税退税 | C190: =SUM(C191:C213,C217,C220:C221,C225:C230,C242:C244,C249,C254) -> 0
A191: 1010501 | B191: 国有冶金工业所得税退税
A192: 1010502 | B192: 国有有色金属工业所得税退税
A193: 1010503 | B193: 国有煤炭工业所得税退税
A194: 1010504 | B194: 国有电力工业所得税退税
A195: 1010505 | B195: 国有石油和化学工业所得税退税
A196: 1010506 | B196: 国有机械工业所得税退税
A197: 1010507 | B197: 国有汽车工业所得税退税
A198: 1010508 | B198: 国有核工业所得税退税
A199: 1010509 | B199: 国有航空工业所得税退税
A200: 1010510 | B200: 国有航天工业所得税退税
... 503 more rows

Sheet JB03
A1: ='##BASEINFO'!$B$2&"度"&'##BASEINFO'!$B$7&"政府性基金预算收支总表" -> 2024年度沅江市政府性基金预算收支总表
D2: 简表03表
D3: ="单位："&'##BASEINFO'!$B$19 -> 单位：万元
A4: 预算科目 | B4: 决算数 | C4: 预算科目 | D4: 决算数
A5: 政府性基金收入 | B5: ='JB04'!C6 -> 17,114 | C5: 教育支出
A6: 专项债务对应项目专项收入 | B6: ='JB04'!C58 -> 0 | C6: 科学技术支出
C7: 文化旅游体育与传媒支出 | D7: 4
C8: 社会保障和就业支出
C9: 卫生健康支出
C10: 节能环保支出
C11: 城乡社区支出 | D11: 19,416
C12: 农林水支出 | D12: 1,954
C13: 交通运输支出
C14: 资源勘探工业信息等支出 | D14: 5
C15: 自然资源海洋气象等支出
C16: 住房保障支出
C17: 粮油物资储备支出
C18: 灾害防治及应急管理支出
C19: 其他支出 | D19: 75,220
C20: 债务付息支出 | D20: 9,274
C21: 债务发行费用支出
C22: 抗疫特别国债安排的支出
A23: 本年收入合计 | B23: =B5+B6 -> 17,114 | C23: 本年支出合计 | D23: =SUM(D5:D22) -> 105,873

Sheet JB04
A1: ='##BASEINFO'!$B$2&"度"&'##BASEINFO'!$B$7&"政府性基金预算收入明细表" -> 2024年度沅江市政府性基金预算收入明细表
C2: 简表04表
C3: ="单位："&'##BASEINFO'!$B$19 -> 单位：万元
A4: 科目编码 | B4: 科目名称 | C4: 决算数
B5: 政府性基金预算收入 | C5: =SUM(C6,C58) -> 17,114
A6: 10301 | B6: 政府性基金收入(款) | C6: =SUM(C7,C10:C17,C23:C24,C27:C30,C33:C35,C38:C42,C45:C46,C54:C57) -> 17,114
A7: 1030102 | B7: 农网还贷资金收入 | C7: =SUM(C8:C9) -> 0
A8: 103010201 | B8: 中央农网还贷资金收入
A9: 103010202 | B9: 地方农网还贷资金收入
A10: 1030106 | B10: 铁路建设基金收入
A11: 1030110 | B11: 民航发展基金收入
A12: 1030112 | B12: 海南省高等级公路车辆通行附加费收入
A13: 1030121 | B13: 旅游发展基金收入
A14: 1030129 | B14: 国家电影事业发展专项资金收入
A15: 1030146 | B15: 国有土地收益基金收入
A16: 1030147 | B16: 农业土地开发资金收入
A17: 1030148 | B17: 国有土地使用权出让收入 | C17: =SUM(C18:C22) -> 14,537
A18: 103014801 | B18: 土地出让价款收入 | C18: 11,552
A19: 103014802 | B19: 补缴的土地价款 | C19: 2,985
A20: 103014803 | B20: 划拨土地收入
A21: 103014898 | B21: 缴纳新增建设用地土地有偿使用费
A22: 103014899 | B22: 其他土地出让收入
A23: 1030149 | B23: 大中型水库移民后期扶持基金收入
A24: 1030150 | B24: 大中型水库库区基金收入 | C24: =SUM(C25:C26) -> 0
A25: 103015001 | B25: 中央大中型水库库区基金收入
A26: 103015002 | B26: 地方大中型水库库区基金收入
A27: 1030152 | B27: 三峡水库库区基金收入
A28: 1030153 | B28: 中央特别国债经营基金收入
A29: 1030154 | B29: 中央特别国债经营基金财务收入
A30: 1030155 | B30: 彩票公益金收入 | C30: =SUM(C31:C32) -> 0
A31: 103015501 | B31: 福利彩票公益金收入
A32: 103015502 | B32: 体育彩票公益金收入
A33: 1030156 | B33: 城市基础设施配套费收入 | C33: 1,275
A34: 1030157 | B34: 小型水库移民扶助基金收入
A35: 1030158 | B35: 国家重大水利工程建设基金收入 | C35: =SUM(C36:C37) -> 0
A36: 103015801 | B36: 中央重大水利工程建设资金
A37: 103015803 | B37: 地方重大水利工程建设资金
A38: 1030159 | B38: 车辆通行费 | C38: 62
A39: 1030166 | B39: 核电站乏燃料处理处置基金收入
A40: 1030168 | B40: 可再生能源电价附加收入
A41: 1030171 | B41: 船舶油污损害赔偿基金收入
A42: 1030175 | B42: 废弃电器电子产品处理基金收入 | C42: =SUM(C43:C44) -> 0
A43: 103017501 | B43: 税务部门征收的废弃电器电子产品处理基金收入
A44: 103017502 | B44: 海关征收的废弃电器电子产品处理基金收入
A45: 1030178 | B45: 污水处理费收入 | C45: 1,240
A46: 1030180 | B46: 彩票发行机构和彩票销售机构的业务费用 | C46: =SUM(C47:C53) -> 0
A47: 103018001 | B47: 福利彩票发行机构的业务费用
A48: 103018002 | B48: 体育彩票发行机构的业务费用
A49: 103018003 | B49: 福利彩票销售机构的业务费用
A50: 103018004 | B50: 体育彩票销售机构的业务费用
A51: 103018005 | B51: 彩票兑奖周转金
A52: 103018006 | B52: 彩票发行销售风险基金
A53: 103018007 | B53: 彩票市场调控资金收入
A54: 1030181 | B54: 抗疫特别国债财务基金收入
A55: 1030182 | B55: 耕地保护考核奖惩基金收入
A56: 1030183 | B56: 超长期特别国债财务基金收入
A57: 1030199 | B57: 其他政府性基金收入
A58: 10310 | B58: 专项债务对应项目专项收入 | C58: =SUM(C59:C61,C65:C70,C73:C74) -> 0
A59: 1031003 | B59: 海南省高等级公路车辆通行附加费专项债务对应项目专项收入
A60: 1031005 | B60: 国家电影事业发展专项资金专项债务对应项目专项收入
A61: 1031006 | B61: 国有土地使用权出让金专项债务对应项目专项收入 | C61: =SUM(C62:C64) -> 0
A62: 103100601 | B62: 土地储备专项债券对应项目专项收入
A63: 103100602 | B63: 棚户区改造专项债券对应项目专项收入
A64: 103100699 | B64: 其他国有土地使用权出让金专项债务对应项目专项收入
A65: 1031008 | B65: 农业土地开发资金专项债务对应项目专项收入
A66: 1031009 | B66: 大中型水库库区基金专项债务对应项目专项收入
A67: 1031010 | B67: 城市基础设施配套费专项债务对应项目专项收入
A68: 1031011 | B68: 小型水库移民扶助基金专项债务对应项目专项收入
A69: 1031012 | B69: 国家重大水利工程建设基金专项债务对应项目专项收入
A70: 1031013 | B70: 车辆通行费专项债务对应项目专项收入 | C70: =SUM(C71:C72) -> 0
A71: 103101301 | B71: 政府收费公路专项债券对应项目专项收入
A72: 103101399 | B72: 其他车辆通行费专项债务对应项目专项收入
A73: 1031014 | B73: 污水处理费专项债务对应项目专项收入
A74: 1031099 | B74: 其他政府性基金专项债务对应项目专项收入 | C74: =SUM(C75:C76) -> 0
A75: 103109998 | B75: 其他地方自行试点项目收益专项债券对应项目专项收入
A76: 103109999 | B76: 其他政府性基金专项债务对应项目专项收入

Sheet JB05
A1: ='##BASEINFO'!$B$2&"度"&'##BASEINFO'!$B$7&"国有资本经营预算收支总表" -> 2024年度沅江市国有资本经营预算收支总表
D2: 简表05表
D3: ="单位："&'##BASEINFO'!$B$19 -> 单位：万元
A4: 预算科目 | B4: 决算数 | C4: 预算科目 | D4: 决算数
A5: 利润收入 | B5: ='JB06'!C8 -> 0 | C5: 解决历史遗留问题及改革成本支出 | D5: 56
A6: 股利、股息收入 | B6: ='JB06'!C40 -> 0 | C6: 国有企业资本金注入
A7: 产权转让收入 | B7: ='JB06'!C45 -> 0 | C7: 国有企业政策性补贴
A8: 清算收入 | B8: ='JB06'!C51 -> 0 | C8: 其他国有资本经营预算支出
A9: 其他国有资本经营预算收入 | B9: ='JB06'!C55 -> 0
A10: 本 年 收 入 合 计 | B10: =SUM(B5:B9) -> 0 | C10: 本 年 支 出 合 计 | D10: =SUM(D5:D8) -> 56

Sheet JB06
A1: ='##BASEINFO'!$B$2&"度"&'##BASEINFO'!$B$7&"国有资本经营预算收入明细表" -> 2024年度沅江市国有资本经营预算收入明细表
C2: 简表06表
C3: ="单位："&'##BASEINFO'!$B$19 -> 单位：万元
A4: 科目编码 | B4: 预算科目 | C4: 决算数
B5: 国有资本经营预算收入 | C5: =C6 -> 0
A6: 103 | B6: 非税收入 | C6: =C7 -> 0
A7: 10306 | B7: 国有资本经营收入 | C7: =C8+C40+C45+C51+C55 -> 0
A8: 1030601 | B8: 利润收入 | C8: =SUM(C9:C39) -> 0
A9: 103060103 | B9: 烟草企业利润收入
A10: 103060104 | B10: 石油石化企业利润收入
A11: 103060105 | B11: 电力企业利润收入
A12: 103060106 | B12: 电信企业利润收入
A13: 103060107 | B13: 煤炭企业利润收入
A14: 103060108 | B14: 有色冶金采掘企业利润收入
A15: 103060109 | B15: 钢铁企业利润收入
A16: 103060112 | B16: 化工企业利润收入
A17: 103060113 | B17: 运输企业利润收入
A18: 103060114 | B18: 电子企业利润收入
A19: 103060115 | B19: 机械企业利润收入
A20: 103060116 | B20: 投资服务企业利润收入
A21: 103060117 | B21: 纺织轻工企业利润收入
A22: 103060118 | B22: 贸易企业利润收入
A23: 103060119 | B23: 建筑施工企业利润收入
A24: 103060120 | B24: 房地产企业利润收入
A25: 103060121 | B25: 建材企业利润收入
A26: 103060122 | B26: 境外企业利润收入
A27: 103060123 | B27: 对外合作企业利润收入
A28: 103060124 | B28: 医药企业利润收入
A29: 103060125 | B29: 农林牧渔企业利润收入
A30: 103060126 | B30: 邮政企业利润收入
A31: 103060127 | B31: 军工企业利润收入
A32: 103060128 | B32: 转制科研院所利润收入
A33: 103060129 | B33: 地质勘查企业利润收入
A34: 103060130 | B34: 卫生体育福利企业利润收入
A35: 103060131 | B35: 教育文化广播企业利润收入
A36: 103060132 | B36: 科学研究企业利润收入
A37: 103060133 | B37: 机关社团所属企业利润收入
A38: 103060134 | B38: 金融企业利润收入
A39: 103060198 | B39: 其他国有资本经营预算企业利润收入
A40: 1030602 | B40: 股利、股息收入 | C40: =SUM(C41:C44) -> 0
A41: 103060202 | B41: 国有控股公司股利、股息收入
A42: 103060203 | B42: 国有参股公司股利、股息收入
A43: 103060204 | B43: 金融企业股利、股息收入
A44: 103060298 | B44: 其他国有资本经营预算企业股利、股息收入
A45: 1030603 | B45: 产权转让收入 | C45: =SUM(C46:C50) -> 0
A46: 103060301 | B46: 国有股减持收入
A47: 103060304 | B47: 国有股权、股份转让收入
A48: 103060305 | B48: 国有独资企业产权转让收入
A49: 103060307 | B49: 金融企业产权转让收入
A50: 103060398 | B50: 其他国有资本经营预算企业产权转让收入
A51: 1030604 | B51: 清算收入 | C51: =SUM(C52:C54) -> 0
A52: 103060401 | B52: 国有股权、股份清算收入
A53: 103060402 | B53: 国有独资企业清算收入
A54: 103060498 | B54: 其他国有资本经营预算企业清算收入
A55: 1030698 | B55: 其他国有资本经营预算收入

Sheet FB
A1: 附表：
A2: ='##BASEINFO'!$B$2&"度"&'##BASEINFO'!$B$7&"区域间转移性收支表" -> 2024年度沅江市区域间转移性收支表
D3: ="单位："&'##BASEINFO'!$B$19 -> 单位：万元
A4: 科目名称 | B4: 决算数 | C4: 科目名称 | D4: 决算数
A5: 11021区域间转移性收入 | B5: =SUM(B6:B11,B14:B18,B21:B22,B25:B26,B29:B32,B35:B47) -> 0 | C5: 23021区域间转移性支出 | D5: =SUM(D6:D11,D14:D18,D21:D22,D25:D26,D29:D32,D35:D47) -> 0
A6: 北京市 | B6: =B49+B92+B135+B178 -> 0 | C6: 北京市 | D6: =D49+D92+D135+D178 -> 0
A7: 天津市 | B7: 0 | C7: 天津市 | D7: 0
A8: 河北省 | B8: 0 | C8: 河北省 | D8: 0
A9: 山西省 | B9: 0 | C9: 山西省 | D9: 0
A10: 内蒙古自治区 | B10: 0 | C10: 内蒙古自治区 | D10: 0
A11: 辽宁省 | B11: =SUM(B12:B13) -> 0 | C11: 辽宁省 | D11: =SUM(D12:D13) -> 0
A12: 辽宁省（不含大连对省内其他城市的区域间转移性收入） | B12: =B55+B98+B141+B184 -> 0 | C12: 辽宁省（不含省内其他城市对大连的区域间转移性支出） | D12: =D55+D98+D141+D184 -> 0
A13: 大连市（不含省内其他城市对大连的区域间转移性收入） | B13: 0 | C13: 大连市（不含大连对省内其他城市的区域间转移性支出） | D13: 0
A14: 吉林省 | B14: 0 | C14: 吉林省 | D14: 0
A15: 黑龙江省 | B15: 0 | C15: 黑龙江省 | D15: 0
A16: 上海市 | B16: 0 | C16: 上海市 | D16: 0
A17: 江苏省 | B17: 0 | C17: 江苏省 | D17: 0
A18: 浙江省 | B18: =SUM(B19:B20) -> 0 | C18: 浙江省 | D18: =SUM(D19:D20) -> 0
A19: 浙江省（不含宁波对省内其他城市的区域间转移性收入） | B19: =B62+B105+B148+B191 -> 0 | C19: 浙江省（不含省内其他城市对宁波的区域间转移性支出） | D19: =D62+D105+D148+D191 -> 0
A20: 宁波市（不含省内其他城市对宁波的区域间转移性收入） | B20: 0 | C20: 宁波市（不含宁波对省内其他城市的区域间转移性支出） | D20: 0
A21: 安徽省 | B21: 0 | C21: 安徽省 | D21: 0
A22: 福建省 | B22: =SUM(B23:B24) -> 0 | C22: 福建省 | D22: =SUM(D23:D24) -> 0
A23: 福建省（不含厦门对省内其他城市的区域间转移性收入） | B23: =B66+B109+B152+B195 -> 0 | C23: 福建省（不含省内其他城市对厦门的区域间转移性支出） | D23: =D66+D109+D152+D195 -> 0
A24: 厦门市（不含省内其他城市对厦门的区域间转移性收入） | B24: 0 | C24: 厦门市（不含厦门对省内其他城市的区域间转移性支出） | D24: 0
A25: 江西省 | B25: 0 | C25: 江西省 | D25: 0
A26: 山东省 | B26: =SUM(B27:B28) -> 0 | C26: 山东省 | D26: =SUM(D27:D28) -> 0
A27: 山东省（不含青岛对省内其他城市的区域间转移性收入） | B27: =B70+B113+B156+B199 -> 0 | C27: 山东省（不含省内其他城市对青岛的区域间转移性支出） | D27: =D70+D113+D156+D199 -> 0
A28: 青岛市（不含省内其他城市对青岛的区域间转移性收入） | B28: 0 | C28: 青岛市（不含青岛对省内其他城市的区域间转移性支出） | D28: 0
A29: 河南省 | B29: 0 | C29: 河南省 | D29: 0
A30: 湖北省 | B30: 0 | C30: 湖北省 | D30: 0
A31: 湖南省 | B31: 0 | C31: 湖南省 | D31: 0
A32: 广东省 | B32: =SUM(B33:B34) -> 0 | C32: 广东省 | D32: =SUM(D33:D34) -> 0
A33: 广东省（不含深圳对省内其他城市的区域间转移性收入） | B33: =B76+B119+B162+B205 -> 0 | C33: 广东省（不含省内其他城市对深圳的区域间转移性支出） | D33: =D76+D119+D162+D205 -> 0
A34: 深圳市（不含省内其他城市对深圳的区域间转移性收入） | B34: 0 | C34: 深圳市（不含深圳对省内其他城市的区域间转移性支出） | D34: 0
A35: 广西壮族自治区 | B35: 0 | C35: 广西壮族自治区 | D35: 0
A36: 海南省 | B36: 0 | C36: 海南省 | D36: 0
A37: 重庆市 | B37: 0 | C37: 重庆市 | D37: 0
A38: 四川省 | B38: 0 | C38: 四川省 | D38: 0
A39: 贵州省 | B39: 0 | C39: 贵州省 | D39: 0
A40: 云南省 | B40: 0 | C40: 云南省 | D40: 0
A41: 西藏自治区 | B41: 0 | C41: 西藏自治区 | D41: 0
A42: 陕西省 | B42: 0 | C42: 陕西省 | D42: 0
A43: 甘肃省 | B43: 0 | C43: 甘肃省 | D43: 0
A44: 青海省 | B44: 0 | C44: 青海省 | D44: 0
A45: 宁夏回族自治区 | B45: 0 | C45: 宁夏回族自治区 | D45: 0
A46: 新疆维吾尔自治区 | B46: 0 | C46: 新疆维吾尔自治区 | D46: 0
A47: 新疆生产建设兵团 | B47: 0 | C47: 新疆生产建设兵团 | D47: 0
A48: 1102101接受其他地区援助收入 | B48: =SUM(B49:B54,B57:B61,B64:B65,B68:B69,B72:B75,B78:B90) -> 0 | C48: 2302101援助其他地区支出 | D48: =SUM(D49:D54,D57:D61,D64:D65,D68:D69,D72:D75,D78:D90) -> 0
A49: 北京市 | C49: 北京市
A50: 天津市 | C50: 天津市
A51: 河北省 | C51: 河北省
A52: 山西省 | C52: 山西省
A53: 内蒙古自治区 | C53: 内蒙古自治区
A54: 辽宁省 | B54: =SUM(B55:B56) -> 0 | C54: 辽宁省 | D54: =SUM(D55:D56) -> 0
A55: 辽宁省（不含大连对省内其他城市的援助收入） | C55: 辽宁省（不含省内其他城市对大连的援助支出）
A56: 大连市（不含省内其他城市对大连的援助收入） | C56: 大连市（不含大连对省内其他城市的援助支出）
A57: 吉林省 | C57: 吉林省
A58: 黑龙江省 | C58: 黑龙江省
A59: 上海市 | C59: 上海市
A60: 江苏省 | C60: 江苏省
A61: 浙江省 | B61: =SUM(B62:B63) -> 0 | C61: 浙江省 | D61: =SUM(D62:D63) -> 0
A62: 浙江省（不含宁波对省内其他城市的援助收入） | C62: 浙江省（不含省内其他城市对宁波的援助支出）
A63: 宁波市（不含省内其他城市对宁波的援助收入） | C63: 宁波市（不含宁波对省内其他城市的援助支出）
A64: 安徽省 | C64: 安徽省
A65: 福建省 | B65: =SUM(B66:B67) -> 0 | C65: 福建省 | D65: =SUM(D66:D67) -> 0
A66: 福建省（不含厦门对省内其他城市的援助收入） | C66: 福建省（不含省内其他城市对厦门的援助支出）
A67: 厦门市（不含省内其他城市对厦门的援助收入） | C67: 厦门市（不含厦门对省内其他城市的援助支出）
A68: 江西省 | C68: 江西省
A69: 山东省 | B69: =SUM(B70:B71) -> 0 | C69: 山东省 | D69: =SUM(D70:D71) -> 0
A70: 山东省（不含青岛对省内其他城市的援助收入） | C70: 山东省（不含省内其他城市对青岛的援助支出）
A71: 青岛市（不含省内其他城市对青岛的援助收入） | C71: 青岛市（不含青岛对省内其他城市的援助支出）
A72: 河南省 | C72: 河南省
A73: 湖北省 | C73: 湖北省
A74: 湖南省 | C74: 湖南省
A75: 广东省 | B75: =SUM(B76:B77) -> 0 | C75: 广东省 | D75: =SUM(D76:D77) -> 0
A76: 广东省（不含深圳对省内其他城市的援助收入） | C76: 广东省（不含省内其他城市对深圳的援助支出）
A77: 深圳市（不含省内其他城市对深圳的援助收入） | C77: 深圳市（不含深圳对省内其他城市的援助支出）
A78: 广西壮族自治区 | C78: 广西壮族自治区
A79: 海南省 | C79: 海南省
A80: 重庆市 | C80: 重庆市
A81: 四川省 | C81: 四川省
A82: 贵州省 | C82: 贵州省
A83: 云南省 | C83: 云南省
A84: 西藏自治区 | C84: 西藏自治区
A85: 陕西省 | C85: 陕西省
A86: 甘肃省 | C86: 甘肃省
A87: 青海省 | C87: 青海省
A88: 宁夏回族自治区 | C88: 宁夏回族自治区
A89: 新疆维吾尔自治区 | C89: 新疆维吾尔自治区
A90: 新疆生产建设兵团 | C90: 新疆生产建设兵团
A91: 1102102生态保护补偿转移性收入 | B91: =SUM(B92:B97,B100:B104,B107:B108,B111:B112,B115:B118,B121:B133) -> 0 | C91: 2302102生态保护补偿转移性支出 | D91: =SUM(D92:D97,D100:D104,D107:D108,D111:D112,D115:D118,D121:D133) -> 0
A92: 北京市 | C92: 北京市
A93: 天津市 | C93: 天津市
A94: 河北省 | C94: 河北省
A95: 山西省 | C95: 山西省
A96: 内蒙古自治区 | C96: 内蒙古自治区
A97: 辽宁省 | B97: =SUM(B98:B99) -> 0 | C97: 辽宁省 | D97: =SUM(D98:D99) -> 0
A98: 辽宁省（不含大连对省内其他城市的生态保护补偿转移性收入） | C98: 辽宁省（不含省内其他城市对大连的生态保护补偿转移性支出）
A99: 大连市（不含省内其他城市对大连的生态保护补偿转移性收入） | C99: 大连市（不含大连对省内其他城市的生态保护补偿转移性支出）
A100: 吉林省 | C100: 吉林省
A101: 黑龙江省 | C101: 黑龙江省
A102: 上海市 | C102: 上海市
A103: 江苏省 | C103: 江苏省
A104: 浙江省 | B104: =SUM(B105:B106) -> 0 | C104: 浙江省 | D104: =SUM(D105:D106) -> 0
A105: 浙江省（不含宁波对省内其他城市的生态保护补偿转移性收入） | C105: 浙江省（不含省内其他城市对宁波的生态保护补偿转移性支出）
A106: 宁波市（不含省内其他城市对宁波的生态保护补偿转移性收入） | C106: 宁波市（不含宁波对省内其他城市的生态保护补偿转移性支出）
A107: 安徽省 | C107: 安徽省
A108: 福建省 | B108: =SUM(B109:B110) -> 0 | C108: 福建省 | D108: =SUM(D109:D110) -> 0
A109: 福建省（不含厦门对省内其他城市的生态保护补偿转移性收入） | C109: 福建省（不含省内其他城市对厦门的生态保护补偿转移性支出）
A110: 厦门市（不含省内其他城市对厦门的生态保护补偿转移性收入） | C110: 厦门市（不含厦门对省内其他城市的生态保护补偿转移性支出）
A111: 江西省 | C111: 江西省
A112: 山东省 | B112: =SUM(B113:B114) -> 0 | C112: 山东省 | D112: =SUM(D113:D114) -> 0
A113: 山东省（不含青岛对省内其他城市的生态保护补偿转移性收入） | C113: 山东省（不含省内其他城市对青岛的生态保护补偿转移性支出）
A114: 青岛市（不含省内其他城市对青岛的生态保护补偿转移性收入） | C114: 青岛市（不含青岛对省内其他城市的生态保护补偿转移性支出）
A115: 河南省 | C115: 河南省
A116: 湖北省 | C116: 湖北省
A117: 湖南省 | C117: 湖南省
A118: 广东省 | B118: =SUM(B119:B120) -> 0 | C118: 广东省 | D118: =SUM(D119:D120) -> 0
A119: 广东省（不含深圳对省内其他城市的生态保护补偿转移性收入） | C119: 广东省（不含省内其他城市对深圳的生态保护补偿转移性支出）
A120: 深圳市（不含省内其他城市对深圳的生态保护补偿转移性收入） | C120: 深圳市（不含深圳对省内其他城市的生态保护补偿转移性支出）
A121: 广西壮族自治区 | C121: 广西壮族自治区
A122: 海南省 | C122: 海南省
A123: 重庆市 | C123: 重庆市
A124: 四川省 | C124: 四川省
A125: 贵州省 | C125: 贵州省
A126: 云南省 | C126: 云南省
A127: 西藏自治区 | C127: 西藏自治区
A128: 陕西省 | C128: 陕西省
A129: 甘肃省 | C129: 甘肃省
A130: 青海省 | C130: 青海省
A131: 宁夏回族自治区 | C131: 宁夏回族自治区
A132: 新疆维吾尔自治区 | C132: 新疆维吾尔自治区
A133: 新疆生产建设兵团 | C133: 新疆生产建设兵团
A134: 1102103土地指标调剂转移性收入 | B134: =SUM(B135:B140,B143:B147,B150:B151,B154:B155,B158:B161,B164:B176) -> 0 | C134: 2302103土地指标调剂转移性支出 | D134: =SUM(D135:D140,D143:D147,D150:D151,D154:D155,D158:D161,D164:D176) -> 0
A135: 北京市 | C135: 北京市
A136: 天津市 | C136: 天津市
A137: 河北省 | C137: 河北省
A138: 山西省 | C138: 山西省
A139: 内蒙古自治区 | C139: 内蒙古自治区
A140: 辽宁省 | B140: =SUM(B141:B142) -> 0 | C140: 辽宁省 | D140: =SUM(D141:D142) -> 0
A141: 辽宁省（不含大连对省内其他城市的土地指标调剂转移性收入） | C141: 辽宁省（不含省内其他城市对大连的土地指标调剂转移性支出）
A142: 大连市（不含省内其他城市对大连的土地指标调剂转移性收入） | C142: 大连市（不含大连对省内其他城市的土地指标调剂转移性支出）
A143: 吉林省 | C143: 吉林省
A144: 黑龙江省 | C144: 黑龙江省
A145: 上海市 | C145: 上海市
A146: 江苏省 | C146: 江苏省
A147: 浙江省 | B147: =SUM(B148:B149) -> 0 | C147: 浙江省 | D147: =SUM(D148:D149) -> 0
A148: 浙江省（不含宁波对省内其他城市的土地指标调剂转移性收入） | C148: 浙江省（不含省内其他城市对宁波的土地指标调剂转移性支出）
A149: 宁波市（不含省内其他城市对宁波的土地指标调剂转移性收入） | C149: 宁波市（不含宁波对省内其他城市的土地指标调剂转移性支出）
A150: 安徽省 | C150: 安徽省
A151: 福建省 | B151: =SUM(B152:B153) -> 0 | C151: 福建省 | D151: =SUM(D152:D153) -> 0
A152: 福建省（不含厦门对省内其他城市的土地指标调剂转移性收入） | C152: 福建省（不含省内其他城市对厦门的土地指标调剂转移性支出）
A153: 厦门市（不含省内其他城市对厦门的土地指标调剂转移性收入） | C153: 厦门市（不含厦门对省内其他城市的土地指标调剂转移性支出）
A154: 江西省 | C154: 江西省
A155: 山东省 | B155: =SUM(B156:B157) -> 0 | C155: 山东省 | D155: =SUM(D156:D157) -> 0
A156: 山东省（不含青岛对省内其他城市的土地指标调剂转移性收入） | C156: 山东省（不含省内其他城市对青岛的土地指标调剂转移性支出）
A157: 青岛市（不含省内其他城市对青岛的土地指标调剂转移性收入） | C157: 青岛市（不含青岛对省内其他城市的土地指标调剂转移性支出）
A158: 河南省 | C158: 河南省
A159: 湖北省 | C159: 湖北省
A160: 湖南省 | C160: 湖南省
A161: 广东省 | B161: =SUM(B162:B163) -> 0 | C161: 广东省 | D161: =SUM(D162:D163) -> 0
A162: 广东省（不含深圳对省内其他城市的土地指标调剂转移性收入） | C162: 广东省（不含省内其他城市对深圳的土地指标调剂转移性支出）
A163: 深圳市（不含省内其他城市对深圳的土地指标调剂转移性收入） | C163: 深圳市（不含深圳对省内其他城市的土地指标调剂转移性支出）
A164: 广西壮族自治区 | C164: 广西壮族自治区
A165: 海南省 | C165: 海南省
A166: 重庆市 | C166: 重庆市
A167: 四川省 | C167: 四川省
A168: 贵州省 | C168: 贵州省
A169: 云南省 | C169: 云南省
A170: 西藏自治区 | C170: 西藏自治区
A171: 陕西省 | C171: 陕西省
A172: 甘肃省 | C172: 甘肃省
A173: 青海省 | C173: 青海省
A174: 宁夏回族自治区 | C174: 宁夏回族自治区
A175: 新疆维吾尔自治区 | C175: 新疆维吾尔自治区
A176: 新疆生产建设兵团 | C176: 新疆生产建设兵团
A177: 1102199其他转移性收入 | B177: =SUM(B178:B183,B186:B190,B193:B194,B197:B198,B201:B204,B207:B219) -> 0 | C177: 2302199其他转移性支出 | D177: =SUM(D178:D183,D186:D190,D193:D194,D197:D198,D201:D204,D207:D219) -> 0
A178: 北京市 | C178: 北京市
A179: 天津市 | C179: 天津市
A180: 河北省 | C180: 河北省
A181: 山西省 | C181: 山西省
A182: 内蒙古自治区 | C182: 内蒙古自治区
A183: 辽宁省 | B183: =SUM(B184:B185) -> 0 | C183: 辽宁省 | D183: =SUM(D184:D185) -> 0
A184: 辽宁省（不含大连对省内其他城市的其他转移性收入） | C184: 辽宁省（不含省内其他城市对大连的其他转移性支出）
A185: 大连市（不含省内其他城市对大连的其他转移性收入） | C185: 大连市（不含大连对省内其他城市的其他转移性支出）
A186: 吉林省 | C186: 吉林省
A187: 黑龙江省 | C187: 黑龙江省
A188: 上海市 | C188: 上海市
A189: 江苏省 | C189: 江苏省
A190: 浙江省 | B190: =SUM(B191:B192) -> 0 | C190: 浙江省 | D190: =SUM(D191:D192) -> 0
A191: 浙江省（不含宁波对省内其他城市的其他转移性收入） | C191: 浙江省（不含省内其他城市对宁波的其他转移性支出）
A192: 宁波市（不含省内其他城市对宁波的其他转移性收入） | C192: 宁波市（不含宁波对省内其他城市的其他转移性支出）
A193: 安徽省 | C193: 安徽省
A194: 福建省 | B194: =SUM(B195:B196) -> 0 | C194: 福建省 | D194: =SUM(D195:D196) -> 0
A195: 福建省（不含厦门对省内其他城市的其他转移性收入） | C195: 福建省（不含省内其他城市对厦门的其他转移性支出）
A196: 厦门市（不含省内其他城市对厦门的其他转移性收入） | C196: 厦门市（不含厦门对省内其他城市的其他转移性支出）
A197: 江西省 | C197: 江西省
A198: 山东省 | B198: =SUM(B199:B200) -> 0 | C198: 山东省 | D198: =SUM(D199:D200) -> 0
A199: 山东省（不含青岛对省内其他城市的其他转移性收入） | C199: 山东省（不含省内其他城市对青岛的其他转移性支出）
A200: 青岛市（不含省内其他城市对青岛的其他转移性收入） | C200: 青岛市（不含青岛对省内其他城市的其他转移性支出）
... 19 more rows

Sheet 07
A1: 2024年度全国合计一般公共预算支出决算功能分类录入表
A2: 简表07表
A3: 单位：万元
A4: 科目编码 | B4: 科目名称 | C4: 决算数
B5: 一般公共预算支出 | C5: =SUM(C6,C247,C287,C306,C396,C448,C504,C561,C690,C771,C842,C865,C973,C1025,C1089,C1109,C1139,C1149,C1194,C1215,C1260,C1310,C1313,C1326) -> 590,936
A6: 201 | B6: 一般公共服务支出 | C6: =C7+C19+C28+C38+C49+C60+C71+C79+C88+C101+C110+C121+C133+C140+C148+C154+C161+C168+C175+C182+C189+C197+C203+C209+C216+C231+C238+C244 -> 45,088
A7: 20101 | B7: 人大事务 | C7: =SUM(C8:C18) -> 1,118
A8: 2010101 | B8: 行政运行 | C8: 709
A9: 2010102 | B9: 一般行政管理事务 | C9: 134
A10: 2010103 | B10: 机关服务
A11: 2010104 | B11: 人大会议 | C11: 46
A12: 2010105 | B12: 人大立法
A13: 2010106 | B13: 人大监督 | C13: 60
A14: 2010107 | B14: 人大代表履职能力提升
A15: 2010108 | B15: 代表工作 | C15: 109
A16: 2010109 | B16: 人大信访工作
A17: 2010150 | B17: 事业运行
A18: 2010199 | B18: 其他人大事务支出 | C18: 60
A19: 20102 | B19: 政协事务 | C19: =SUM(C20:C27) -> 933
A20: 2010201 | B20: 行政运行 | C20: 540
A21: 2010202 | B21: 一般行政管理事务 | C21: 281
A22: 2010203 | B22: 机关服务
A23: 2010204 | B23: 政协会议 | C23: 61
A24: 2010205 | B24: 委员视察
A25: 2010206 | B25: 参政议政
A26: 2010250 | B26: 事业运行
A27: 2010299 | B27: 其他政协事务支出 | C27: 51
A28: 20103 | B28: 政府办公厅(室)及相关机构事务 | C28: =SUM(C29:C37) -> 22,154
A29: 2010301 | B29: 行政运行 | C29: 15,930
A30: 2010302 | B30: 一般行政管理事务 | C30: 4,986
A31: 2010303 | B31: 机关服务 | C31: 479
A32: 2010304 | B32: 专项服务
A33: 2010305 | B33: 专项业务及机关事务管理 | C33: 20
A34: 2010306 | B34: 政务公开审批 | C34: 80
A35: 2010309 | B35: 参事事务
A36: 2010350 | B36: 事业运行
A37: 2010399 | B37: 其他政府办公厅(室)及相关机构事务支出 | C37: 659
A38: 20104 | B38: 发展与改革事务 | C38: =SUM(C39:C48) -> 1,558
A39: 2010401 | B39: 行政运行 | C39: 875
A40: 2010402 | B40: 一般行政管理事务 | C40: 340
A41: 2010403 | B41: 机关服务
A42: 2010404 | B42: 战略规划与实施 | C42: 74
A43: 2010405 | B43: 日常经济运行调节
A44: 2010406 | B44: 社会事业发展规划
A45: 2010407 | B45: 经济体制改革研究
A46: 2010408 | B46: 物价管理 | C46: 3
A47: 2010450 | B47: 事业运行
A48: 2010499 | B48: 其他发展与改革事务支出 | C48: 266
A49: 20105 | B49: 统计信息事务 | C49: =SUM(C50:C59) -> 424
A50: 2010501 | B50: 行政运行 | C50: 234
A51: 2010502 | B51: 一般行政管理事务 | C51: 73
A52: 2010503 | B52: 机关服务
A53: 2010504 | B53: 信息事务
A54: 2010505 | B54: 专项统计业务 | C54: 69
A55: 2010506 | B55: 统计管理
A56: 2010507 | B56: 专项普查活动 | C56: 30
A57: 2010508 | B57: 统计抽样调查 | C57: 18
A58: 2010550 | B58: 事业运行
A59: 2010599 | B59: 其他统计信息事务支出
A60: 20106 | B60: 财政事务 | C60: =SUM(C61:C70) -> 4,923
A61: 2010601 | B61: 行政运行 | C61: 1,363
A62: 2010602 | B62: 一般行政管理事务 | C62: 2,167
A63: 2010603 | B63: 机关服务
A64: 2010604 | B64: 预算改革业务 | C64: 5
A65: 2010605 | B65: 财政国库业务 | C65: 26
A66: 2010606 | B66: 财政监察
A67: 2010607 | B67: 信息化建设 | C67: 954
A68: 2010608 | B68: 财政委托业务支出 | C68: 246
A69: 2010650 | B69: 事业运行
A70: 2010699 | B70: 其他财政事务支出 | C70: 162
A71: 20107 | B71: 税收事务 | C71: =SUM(C72:C78) -> 1,715
A72: 2010701 | B72: 行政运行
A73: 2010702 | B73: 一般行政管理事务 | C73: 46
A74: 2010703 | B74: 机关服务
A75: 2010709 | B75: 信息化建设
A76: 2010710 | B76: 税收业务
A77: 2010750 | B77: 事业运行
A78: 2010799 | B78: 其他税收事务支出 | C78: 1,669
A79: 20108 | B79: 审计事务 | C79: =SUM(C80:C87) -> 722
A80: 2010801 | B80: 行政运行 | C80: 442
A81: 2010802 | B81: 一般行政管理事务 | C81: 175
A82: 2010803 | B82: 机关服务
A83: 2010804 | B83: 审计业务 | C83: 55
A84: 2010805 | B84: 审计管理
A85: 2010806 | B85: 信息化建设
A86: 2010850 | B86: 事业运行
A87: 2010899 | B87: 其他审计事务支出 | C87: 50
A88: 20109 | B88: 海关事务 | C88: =SUM(C89:C100) -> 0
A89: 2010901 | B89: 行政运行
A90: 2010902 | B90: 一般行政管理事务
A91: 2010903 | B91: 机关服务
A92: 2010905 | B92: 缉私办案
A93: 2010907 | B93: 口岸管理
A94: 2010908 | B94: 信息化建设
A95: 2010909 | B95: 海关关务
A96: 2010910 | B96: 关税征管
A97: 2010911 | B97: 海关监管
A98: 2010912 | B98: 检验检疫
A99: 2010950 | B99: 事业运行
A100: 2010999 | B100: 其他海关事务支出
A101: 20111 | B101: 纪检监察事务 | C101: =SUM(C102:C109) -> 2,420
A102: 2011101 | B102: 行政运行 | C102: 1,646
A103: 2011102 | B103: 一般行政管理事务 | C103: 774
A104: 2011103 | B104: 机关服务
A105: 2011104 | B105: 大案要案查处
A106: 2011105 | B106: 派驻派出机构
A107: 2011106 | B107: 巡视工作
A108: 2011150 | B108: 事业运行
A109: 2011199 | B109: 其他纪检监察事务支出
A110: 20113 | B110: 商贸事务 | C110: =SUM(C111:C120) -> 449
A111: 2011301 | B111: 行政运行
A112: 2011302 | B112: 一般行政管理事务 | C112: 122
A113: 2011303 | B113: 机关服务
A114: 2011304 | B114: 对外贸易管理
A115: 2011305 | B115: 国际经济合作
A116: 2011306 | B116: 外资管理
A117: 2011307 | B117: 国内贸易管理
A118: 2011308 | B118: 招商引资 | C118: 327
A119: 2011350 | B119: 事业运行
A120: 2011399 | B120: 其他商贸事务支出
A121: 20114 | B121: 知识产权事务 | C121: =SUM(C122:C132) -> 17
A122: 2011401 | B122: 行政运行
A123: 2011402 | B123: 一般行政管理事务
A124: 2011403 | B124: 机关服务
A125: 2011404 | B125: 专利审批
A126: 2011405 | B126: 知识产权战略和规划
A127: 2011408 | B127: 国际合作与交流
A128: 2011409 | B128: 知识产权宏观管理 | C128: 13
A129: 2011410 | B129: 商标管理
A130: 2011411 | B130: 原产地地理标志管理
A131: 2011450 | B131: 事业运行
A132: 2011499 | B132: 其他知识产权事务支出 | C132: 4
A133: 20123 | B133: 民族事务 | C133: =SUM(C134:C139) -> 0
A134: 2012301 | B134: 行政运行
A135: 2012302 | B135: 一般行政管理事务
A136: 2012303 | B136: 机关服务
A137: 2012304 | B137: 民族工作专项
A138: 2012350 | B138: 事业运行
A139: 2012399 | B139: 其他民族事务支出
A140: 20125 | B140: 港澳台事务 | C140: =SUM(C141:C147) -> 0
A141: 2012501 | B141: 行政运行
A142: 2012502 | B142: 一般行政管理事务
A143: 2012503 | B143: 机关服务
A144: 2012504 | B144: 港澳事务
A145: 2012505 | B145: 台湾事务
A146: 2012550 | B146: 事业运行
A147: 2012599 | B147: 其他港澳台事务支出
A148: 20126 | B148: 档案事务 | C148: =SUM(C149:C153) -> 234
A149: 2012601 | B149: 行政运行 | C149: 144
A150: 2012602 | B150: 一般行政管理事务 | C150: 70
A151: 2012603 | B151: 机关服务
A152: 2012604 | B152: 档案馆 | C152: 20
A153: 2012699 | B153: 其他档案事务支出
A154: 20128 | B154: 民主党派及工商联事务 | C154: =SUM(C155:C160) -> 91
A155: 2012801 | B155: 行政运行 | C155: 67
A156: 2012802 | B156: 一般行政管理事务
A157: 2012803 | B157: 机关服务
A158: 2012804 | B158: 参政议政
A159: 2012850 | B159: 事业运行
A160: 2012899 | B160: 其他民主党派及工商联事务支出 | C160: 24
A161: 20129 | B161: 群众团体事务 | C161: =SUM(C162:C167) -> 569
A162: 2012901 | B162: 行政运行 | C162: 292
A163: 2012902 | B163: 一般行政管理事务 | C163: 185
A164: 2012903 | B164: 机关服务
A165: 2012906 | B165: 工会事务
A166: 2012950 | B166: 事业运行 | C166: 34
A167: 2012999 | B167: 其他群众团体事务支出 | C167: 58
A168: 20131 | B168: 党委办公厅(室)及相关机构事务 | C168: =SUM(C169:C174) -> 1,337
A169: 2013101 | B169: 行政运行 | C169: 790
A170: 2013102 | B170: 一般行政管理事务 | C170: 530
A171: 2013103 | B171: 机关服务
A172: 2013105 | B172: 专项业务
A173: 2013150 | B173: 事业运行
A174: 2013199 | B174: 其他党委办公厅(室)及相关机构事务支出 | C174: 17
A175: 20132 | B175: 组织事务 | C175: =SUM(C176:C181) -> 1,220
A176: 2013201 | B176: 行政运行 | C176: 454
A177: 2013202 | B177: 一般行政管理事务 | C177: 583
A178: 2013203 | B178: 机关服务
A179: 2013204 | B179: 公务员事务 | C179: 23
A180: 2013250 | B180: 事业运行
A181: 2013299 | B181: 其他组织事务支出 | C181: 160
A182: 20133 | B182: 宣传事务 | C182: =SUM(C183:C188) -> 497
A183: 2013301 | B183: 行政运行 | C183: 202
A184: 2013302 | B184: 一般行政管理事务 | C184: 295
A185: 2013303 | B185: 机关服务
A186: 2013304 | B186: 宣传管理
A187: 2013350 | B187: 事业运行
A188: 2013399 | B188: 其他宣传事务支出
A189: 20134 | B189: 统战事务 | C189: =SUM(C190:C196) -> 220
A190: 2013401 | B190: 行政运行 | C190: 163
A191: 2013402 | B191: 一般行政管理事务 | C191: 55
A192: 2013403 | B192: 机关服务
A193: 2013404 | B193: 宗教事务 | C193: 2
A194: 2013405 | B194: 华侨事务
A195: 2013450 | B195: 事业运行
A196: 2013499 | B196: 其他统战事务支出
A197: 20135 | B197: 对外联络事务 | C197: =SUM(C198:C202) -> 0
A198: 2013501 | B198: 行政运行
A199: 2013502 | B199: 一般行政管理事务
A200: 2013503 | B200: 机关服务
... 1132 more rows

Sheet 08
A1: 2024年度政府性基金预算支出决算功能分类录入表
C2: 简表08表
C3: 单位：万元
A4: 科目编码 | B4: 科目名称 | C4: 决算数
B5: 政府性基金预算支出 | C5: =SUM(C6,C13,C28,C44,C49,C56,C72,C133,C172,C222,C232,C236,C240,C244,C248,C253,C285,C302,C319) -> 105,873
A6: 205 | B6: 教育支出 | C6: =C7 -> 0
A7: 20598 | B7: 超长期特别国债安排的支出 | C7: =SUM(C8:C12) -> 0
A8: 2059801 | B8: 基础教育
A9: 2059802 | B9: 高等教育
A10: 2059803 | B10: 职业教育
A11: 2059804 | B11: 特殊教育
A12: 2059899 | B12: 其他教育支出
A13: 206 | B13: 科学技术支出 | C13: =C14+C21 -> 0
A14: 20610 | B14: 核电站乏燃料处理处置基金支出 | C14: =SUM(C15:C20) -> 0
A15: 2061001 | B15: 乏燃料运输
A16: 2061002 | B16: 乏燃料离堆贮存
A17: 2061003 | B17: 乏燃料后处理
A18: 2061004 | B18: 高放废物的处理处置
A19: 2061005 | B19: 乏燃料后处理厂的建设、运行、改造和退役
A20: 2061099 | B20: 其他乏燃料处理处置基金支出
A21: 20698 | B21: 超长期特别国债安排的支出 | C21: =SUM(C22:C27) -> 0
A22: 2069801 | B22: 基础研究
A23: 2069802 | B23: 应用研究
A24: 2069803 | B24: 技术研究与开发
A25: 2069804 | B25: 科技条件与服务
A26: 2069805 | B26: 科技重大项目
A27: 2069899 | B27: 其他科技支出
A28: 207 | B28: 文化旅游体育与传媒支出 | C28: =SUM(C29,C35,C41) -> 4
A29: 20707 | B29: 国家电影事业发展专项资金安排的支出 | C29: =SUM(C30:C34) -> 4
A30: 2070701 | B30: 资助国产影片放映
A31: 2070702 | B31: 资助影院建设
A32: 2070703 | B32: 资助少数民族语电影译制
A33: 2070704 | B33: 购买农村电影公益性放映版权服务
A34: 2070799 | B34: 其他国家电影事业发展专项资金支出 | C34: 4
A35: 20709 | B35: 旅游发展基金支出 | C35: =SUM(C36:C40) -> 0
A36: 2070901 | B36: 宣传促销
A37: 2070902 | B37: 行业规划
A38: 2070903 | B38: 旅游事业补助
A39: 2070904 | B39: 地方旅游开发项目补助
A40: 2070999 | B40: 其他旅游发展基金支出
A41: 20710 | B41: 国家电影事业发展专项资金对应专项债务收入安排的支出 | C41: =SUM(C42:C43) -> 0
A42: 2071001 | B42: 资助城市影院
A43: 2071099 | B43: 其他国家电影事业发展专项资金对应专项债务收入支出
A44: 208 | B44: 社会保障和就业支出 | C44: =C45 -> 0
A45: 20898 | B45: 超长期特别国债安排的支出 | C45: =SUM(C46:C48) -> 0
A46: 2089801 | B46: 养老机构及服务设施
A47: 2089802 | B47: 公共就业服务设施
A48: 2089899 | B48: 其他社会保障和就业支出
A49: 210 | B49: 卫生健康支出 | C49: =C50 -> 0
A50: 21098 | B50: 超长期特别国债安排的支出 | C50: =SUM(C51:C55) -> 0
A51: 2109801 | B51: 公立医院
A52: 2109802 | B52: 基层医疗卫生机构
A53: 2109803 | B53: 公共卫生机构
A54: 2109804 | B54: 托育机构
A55: 2109899 | B55: 其他卫生健康支出
A56: 211 | B56: 节能环保支出 | C56: =SUM(C57,C62,C67) -> 0
A57: 21160 | B57: 可再生能源电价附加收入安排的支出 | C57: =SUM(C58:C61) -> 0
A58: 2116001 | B58: 风力发电补助
A59: 2116002 | B59: 太阳能发电补助
A60: 2116003 | B60: 生物质能发电补助
A61: 2116099 | B61: 其他可再生能源电价附加收入安排的支出
A62: 21161 | B62: 废弃电器电子产品处理基金支出 | C62: =SUM(C63:C66) -> 0
A63: 2116101 | B63: 回收处理费用补贴
A64: 2116102 | B64: 信息系统建设
A65: 2116103 | B65: 基金征管经费
A66: 2116104 | B66: 其他废弃电器电子产品处理基金支出
A67: 21198 | B67: 超长期特别国债安排的支出 | C67: =SUM(C68:C71) -> 0
A68: 2119801 | B68: 水污染综合治理
A69: 2119802 | B69: 应对气候变化
A70: 2119803 | B70: “三北”工程建设
A71: 2119899 | B71: 其他节能环保支出
A72: 212 | B72: 城乡社区支出 | C72: =SUM(C73,C89,C93:C94,C100,C104,C108,C112,C118,C121,C130) -> 19,416
A73: 21208 | B73: 国有土地使用权出让收入安排的支出 | C73: =SUM(C74:C88) -> 17,175
A74: 2120801 | B74: 征地和拆迁补偿支出
A75: 2120802 | B75: 土地开发支出
A76: 2120803 | B76: 城市建设支出 | C76: 2,920
A77: 2120804 | B77: 农村基础设施建设支出 | C77: 2,219
A78: 2120805 | B78: 补助被征地农民支出
A79: 2120806 | B79: 土地出让业务支出 | C79: 988
A80: 2120807 | B80: 廉租住房支出
A81: 2120809 | B81: 支付破产或改制企业职工安置费
A82: 2120810 | B82: 棚户区改造支出
A83: 2120811 | B83: 公共租赁住房支出
A84: 2120813 | B84: 保障性住房租金补贴
A85: 2120814 | B85: 农业生产发展支出
A86: 2120815 | B86: 农村社会事业支出
A87: 2120816 | B87: 农业农村生态环境支出
A88: 2120899 | B88: 其他国有土地使用权出让收入安排的支出 | C88: 11,048
A89: 21210 | B89: 国有土地收益基金安排的支出 | C89: =SUM(C90:C92) -> 0
A90: 2121001 | B90: 征地和拆迁补偿支出
A91: 2121002 | B91: 土地开发支出
A92: 2121099 | B92: 其他国有土地收益基金支出
A93: 21211 | B93: 农业土地开发资金安排的支出
A94: 21213 | B94: 城市基础设施配套费安排的支出 | C94: =SUM(C95:C99) -> 901
A95: 2121301 | B95: 城市公共设施
A96: 2121302 | B96: 城市环境卫生
A97: 2121303 | B97: 公有房屋
A98: 2121304 | B98: 城市防洪
A99: 2121399 | B99: 其他城市基础设施配套费安排的支出 | C99: 901
A100: 21214 | B100: 污水处理费安排的支出 | C100: =SUM(C101:C103) -> 1,340
A101: 2121401 | B101: 污水处理设施建设和运营
A102: 2121402 | B102: 代征手续费
A103: 2121499 | B103: 其他污水处理费安排的支出 | C103: 1,340
A104: 21215 | B104: 土地储备专项债券收入安排的支出 | C104: =SUM(C105:C107) -> 0
A105: 2121501 | B105: 征地和拆迁补偿支出
A106: 2121502 | B106: 土地开发支出
A107: 2121599 | B107: 其他土地储备专项债券收入安排的支出
A108: 21216 | B108: 棚户区改造专项债券收入安排的支出 | C108: =SUM(C109:C111) -> 0
A109: 2121601 | B109: 征地和拆迁补偿支出
A110: 2121602 | B110: 土地开发支出
A111: 2121699 | B111: 其他棚户区改造专项债券收入安排的支出
A112: 21217 | B112: 城市基础设施配套费对应专项债务收入安排的支出 | C112: =SUM(C113:C117) -> 0
A113: 2121701 | B113: 城市公共设施
A114: 2121702 | B114: 城市环境卫生
A115: 2121703 | B115: 公有房屋
A116: 2121704 | B116: 城市防洪
A117: 2121799 | B117: 其他城市基础设施配套费对应专项债务收入安排的支出
A118: 21218 | B118: 污水处理费对应专项债务收入安排的支出 | C118: =SUM(C119:C120) -> 0
A119: 2121801 | B119: 污水处理设施建设和运营
A120: 2121899 | B120: 其他污水处理费对应专项债务收入安排的支出
A121: 21219 | B121: 国有土地使用权出让收入对应专项债务收入安排的支出 | C121: =SUM(C122:C129) -> 0
A122: 2121901 | B122: 征地和拆迁补偿支出
A123: 2121902 | B123: 土地开发支出
A124: 2121903 | B124: 城市建设支出
A125: 2121904 | B125: 农村基础设施建设支出
A126: 2121905 | B126: 廉租住房支出
A127: 2121906 | B127: 棚户区改造支出
A128: 2121907 | B128: 公共租赁住房支出
A129: 2121999 | B129: 其他国有土地使用权出让收入对应专项债务收入安排的支出
A130: 21298 | B130: 超长期特别国债安排的支出 | C130: =SUM(C131:C132) -> 0
A131: 2129801 | B131: 城乡社区公共设施
A132: 2129899 | B132: 其他城乡社区支出
A133: 213 | B133: 农林水支出 | C133: =SUM(C134,C139,C144,C149,C152,C157,C161,C165,C168) -> 1,954
A134: 21366 | B134: 大中型水库库区基金安排的支出 | C134: =SUM(C135:C138) -> 0
A135: 2136601 | B135: 基础设施建设和经济发展
A136: 2136602 | B136: 解决移民遗留问题
A137: 2136603 | B137: 库区防护工程维护
A138: 2136699 | B138: 其他大中型水库库区基金支出
A139: 21367 | B139: 三峡水库库区基金支出 | C139: =SUM(C140:C143) -> 0
A140: 2136701 | B140: 基础设施建设和经济发展
A141: 2136702 | B141: 解决移民遗留问题
A142: 2136703 | B142: 库区维护和管理
A143: 2136799 | B143: 其他三峡水库库区基金支出
A144: 21369 | B144: 国家重大水利工程建设基金安排的支出 | C144: =SUM(C145:C148) -> 0
A145: 2136901 | B145: 南水北调工程建设
A146: 2136902 | B146: 三峡后续工作
A147: 2136903 | B147: 地方重大水利工程建设
A148: 2136999 | B148: 其他重大水利工程建设基金支出
A149: 21370 | B149: 大中型水库库区基金对应专项债务收入安排的支出 | C149: =SUM(C150:C151) -> 0
A150: 2137001 | B150: 基础设施建设和经济发展
A151: 2137099 | B151: 其他大中型水库库区基金对应专项债务收入支出
A152: 21371 | B152: 国家重大水利工程建设基金对应专项债务收入安排的支出 | C152: =SUM(C153:C156) -> 0
A153: 2137101 | B153: 南水北调工程建设
A154: 2137102 | B154: 三峡工程后续工作
A155: 2137103 | B155: 地方重大水利工程建设
A156: 2137199 | B156: 其他重大水利工程建设基金对应专项债务收入支出
A157: 21372 | B157: 大中型水库移民后期扶持基金支出 | C157: =SUM(C158:C160) -> 1,954
A158: 2137201 | B158: 移民补助 | C158: 1,364
A159: 2137202 | B159: 基础设施建设和经济发展 | C159: 590
A160: 2137299 | B160: 其他大中型水库移民后期扶持基金支出
A161: 21373 | B161: 小型水库移民扶助基金安排的支出 | C161: =SUM(C162:C164) -> 0
A162: 2137301 | B162: 移民补助
A163: 2137302 | B163: 基础设施建设和经济发展
A164: 2137399 | B164: 其他小型水库移民扶助基金支出
A165: 21374 | B165: 小型水库移民扶助基金对应专项债务收入安排的支出 | C165: =SUM(C166:C167) -> 0
A166: 2137401 | B166: 基础设施建设和经济发展
A167: 2137499 | B167: 其他小型水库移民扶助基金对应专项债务收入安排的支出
A168: 21398 | B168: 超长期特别国债安排的支出 | C168: =SUM(C169:C171) -> 0
A169: 2139801 | B169: 农业农村支出
A170: 2139802 | B170: 水利支出
A171: 2139899 | B171: 其他农林水支出
A172: 214 | B172: 交通运输支出 | C172: =SUM(C173,C178,C183,C192,C199,C209,C212,C215,C216) -> 0
A173: 21460 | B173: 海南省高等级公路车辆通行附加费安排的支出 | C173: =SUM(C174:C177) -> 0
A174: 2146001 | B174: 公路建设
A175: 2146002 | B175: 公路养护
A176: 2146003 | B176: 公路还贷
A177: 2146099 | B177: 其他海南省高等级公路车辆通行附加费安排的支出
A178: 21462 | B178: 车辆通行费安排的支出 | C178: =SUM(C179:C182) -> 0
A179: 2146201 | B179: 公路还贷
A180: 2146202 | B180: 政府还贷公路养护
A181: 2146203 | B181: 政府还贷公路管理
A182: 2146299 | B182: 其他车辆通行费安排的支出
A183: 21464 | B183: 铁路建设基金支出 | C183: =SUM(C184:C191) -> 0
A184: 2146401 | B184: 铁路建设投资
A185: 2146402 | B185: 购置铁路机车车辆
A186: 2146403 | B186: 铁路还贷
A187: 2146404 | B187: 建设项目铺底资金
A188: 2146405 | B188: 勘测设计
A189: 2146406 | B189: 注册资本金
A190: 2146407 | B190: 周转资金
A191: 2146499 | B191: 其他铁路建设基金支出
A192: 21468 | B192: 船舶油污损害赔偿基金支出 | C192: =SUM(C193:C198) -> 0
A193: 2146801 | B193: 应急处置费用
A194: 2146802 | B194: 控制清除污染
A195: 2146803 | B195: 损失补偿
A196: 2146804 | B196: 生态恢复
A197: 2146805 | B197: 监视监测
A198: 2146899 | B198: 其他船舶油污损害赔偿基金支出
A199: 21469 | B199: 民航发展基金支出 | C199: =SUM(C200:C208) -> 0
A200: 2146901 | B200: 民航机场建设
... 139 more rows

Sheet 09
A1: 2024年度国有资本经营预算支出决算功能分类录入表
E2: 简表09表
E3: 单位：万元
A4: 科目编码 | B4: 预算科目 | C4: 预算数 | D4: 调整预算数 | E4: 决算数
B5: 国有资本经营预算支出 | C5: =C6+C9 -> 0 | D5: =D6+D9 -> 56 | E5: =E6+E9 -> 56
A6: 208 | B6: 社会保障和就业支出 | C6: =C7 -> 0 | D6: =D7 -> 0 | E6: =E7 -> 0
A7: 20804 | B7: 补充全国社会保障基金 | C7: =C8 -> 0 | D7: =D8 -> 0 | E7: =E8 -> 0
A8: 2080451 | B8: 国有资本经营预算补充社保基金支出
A9: 223 | B9: 国有资本经营预算支出 | C9: =C10+C21+C30+C32 -> 0 | D9: =D10+D21+D30+D32 -> 56 | E9: =E10+E21+E30+E32 -> 56
A10: 22301 | B10: 解决历史遗留问题及改革成本支出 | C10: =SUM(C11:C20) -> 0 | D10: =SUM(D11:D20) -> 56 | E10: =SUM(E11:E20) -> 56
A11: 2230101 | B11: 厂办大集体改革支出
A12: 2230102 | B12: “三供一业”移交补助支出
A13: 2230103 | B13: 国有企业办职教幼教补助支出
A14: 2230104 | B14: 国有企业办公共服务机构移交补助支出
A15: 2230105 | B15: 国有企业退休人员社会化管理补助支出 | D15: 56 | E15: 56
A16: 2230106 | B16: 国有企业棚户区改造支出
A17: 2230107 | B17: 国有企业改革成本支出
A18: 2230108 | B18: 离休干部医药费补助支出
A19: 2230109 | B19: 金融企业改革性支出
A20: 2230199 | B20: 其他解决历史遗留问题及改革成本支出
A21: 22302 | B21: 国有企业资本金注入 | C21: =SUM(C22:C29) -> 0 | D21: =SUM(D22:D29) -> 0 | E21: =SUM(E22:E29) -> 0
A22: 2230201 | B22: 国有经济结构调整支出
A23: 2230202 | B23: 公益性设施投资支出
A24: 2230203 | B24: 前瞻性战略性产业发展支出
A25: 2230204 | B25: 生态环境保护支出
A26: 2230205 | B26: 支持科技进步支出
A27: 2230206 | B27: 保障国家经济安全支出
A28: 2230208 | B28: 金融企业资本性支出
A29: 2230299 | B29: 其他国有企业资本金注入
A30: 22303 | B30: 国有企业政策性补贴(款) | C30: =C31 -> 0 | D30: =D31 -> 0 | E30: =E31 -> 0
A31: 2230301 | B31: 国有企业政策性补贴(项)
A32: 22399 | B32: 其他国有资本经营预算支出(款) | C32: =C33 -> 0 | D32: =D33 -> 0 | E32: =E33 -> 0
A33: 2239999 | B33: 其他国有资本经营预算支出(项)

Sheet 10
A1: 2024年一般公共预算(基本)支出决算经济分类录入表
D2: 简表10表
D3: 单位：万元
A4: 科目编码 | B4: 科目名称 | C4: 一般公共预算支出 | D4: 一般公共预算基本支出
B6: 一般公共预算支出 | C6: =C7+C12+C23+C31+C38+C42+C45+C49+C54+C60+C64+C69 -> 590,936 | D6: =D7+D12+D23+D31+D38+D42+D45+D49+D54+D60+D64+D69 -> 131,886
A7: 501 | B7: 机关工资福利支出 | C7: =SUM(C8:C11) -> 68,761 | D7: =SUM(D8:D11) -> 61,368
A8: 50101 | B8: 工资奖金津补贴 | C8: 49,432 | D8: 43,093
A9: 50102 | B9: 社会保障缴费 | C9: 11,801 | D9: 11,358
A10: 50103 | B10: 住房公积金 | C10: 5,759 | D10: 5,148
A11: 50199 | B11: 其他工资福利支出 | C11: 1,769 | D11: 1,769
A12: 502 | B12: 机关商品和服务支出 | C12: =SUM(C13:C22) -> 154,849 | D12: =SUM(D13:D22) -> 3,100
A13: 50201 | B13: 办公经费 | C13: 6,671 | D13: 1,941
A14: 50202 | B14: 会议费 | C14: 169 | D14: 74
A15: 50203 | B15: 培训费 | C15: 193 | D15: 37
A16: 50204 | B16: 专用材料购置费 | C16: 501 | D16: 2
A17: 50205 | B17: 委托业务费 | C17: 2,827 | D17: 104
A18: 50206 | B18: 公务接待费 | C18: 204 | D18: 196
A19: 50207 | B19: 因公出国(境)费用
A20: 50208 | B20: 公务用车运行维护费 | C20: 212 | D20: 207
A21: 50209 | B21: 维修(护)费 | C21: 469 | D21: 83
A22: 50299 | B22: 其他商品和服务支出 | C22: 143,603 | D22: 456
A23: 503 | B23: 机关资本性支出 | C23: =SUM(C24:C30) -> 100,476 | D23: =SUM(D24:D30) -> 0
A24: 50301 | B24: 房屋建筑物购建 | C24: 735
A25: 50302 | B25: 基础设施建设
A26: 50303 | B26: 公务用车购置
A27: 50305 | B27: 土地征迁补偿和安置支出
A28: 50306 | B28: 设备购置
A29: 50307 | B29: 大型修缮
A30: 50399 | B30: 其他资本性支出 | C30: 99,741
A31: 504 | B31: 机关资本性支出(基本建设) | C31: =SUM(C32:C37) -> 7,556 | D31: =SUM(D32:D37) -> 0
A32: 50401 | B32: 房屋建筑物购建
A33: 50402 | B33: 基础设施建设
A34: 50403 | B34: 公务用车购置
A35: 50404 | B35: 设备购置
A36: 50405 | B36: 大型修缮
A37: 50499 | B37: 其他资本性支出 | C37: 7,556
A38: 505 | B38: 对事业单位经常性补助 | C38: =SUM(C39:C41) -> 89,386 | D38: =SUM(D39:D41) -> 65,913
A39: 50501 | B39: 工资福利支出 | C39: 65,448 | D39: 65,448
A40: 50502 | B40: 商品和服务支出 | C40: 11,361 | D40: 465
A41: 50599 | B41: 其他对事业单位补助 | C41: 12,577
A42: 506 | B42: 对事业单位资本性补助 | C42: =SUM(C43:C44) -> 2,975 | D42: =SUM(D43:D44) -> 0
A43: 50601 | B43: 资本性支出 | C43: 2,975
A44: 50602 | B44: 资本性支出(基本建设)
A45: 507 | B45: 对企业补助 | C45: =SUM(C46:C48) -> 3,053 | D45: =SUM(D46:D48) -> 0
A46: 50701 | B46: 费用补贴 | C46: 93
A47: 50702 | B47: 利息补贴 | C47: 4
A48: 50799 | B48: 其他对企业补助 | C48: 2,956
A49: 508 | B49: 对企业资本性支出 | C49: =SUM(C50:C53) -> 0 | D49: =SUM(D50:D53) -> 0
A50: 50803 | B50: 资本金注入
A51: 50804 | B51: 资本金注入(基本建设)
A52: 50805 | B52: 政府投资基金股权投资
A53: 50899 | B53: 其他对企业资本性支出
A54: 509 | B54: 对个人和家庭的补助 | C54: =SUM(C55:C59) -> 60,355 | D54: =SUM(D55:D59) -> 1,505
A55: 50901 | B55: 社会福利和救助 | C55: 1,981 | D55: 1,420
A56: 50902 | B56: 助学金 | C56: 123
A57: 50903 | B57: 个人农业生产补贴
A58: 50905 | B58: 离退休费 | C58: 122 | D58: 85
A59: 50999 | B59: 其他对个人和家庭的补助 | C59: 58,129
A60: 510 | B60: 对社会保障基金补助 | C60: =SUM(C61:C63) -> 69,834 | D60: =SUM(D61:D63) -> 0
A61: 51002 | B61: 对社会保险基金补助 | C61: 65,750
A62: 51003 | B62: 补充全国社会保障基金
A63: 51004 | B63: 对机关事业单位职业年金的补助 | C63: 4,084
A64: 511 | B64: 债务利息及费用支出 | C64: =SUM(C65:C68) -> 11,858 | D64: =SUM(D65:D68) -> 0
A65: 51101 | B65: 国内债务付息 | C65: 11,848
A66: 51102 | B66: 国外债务付息 | C66: 10
A67: 51103 | B67: 国内债务发行费用
A68: 51104 | B68: 国外债务发行费用
A69: 599 | B69: 其他支出 | C69: =SUM(C70:C74) -> 21,833 | D69: =SUM(D70:D74) -> 0
A70: 59907 | B70: 国家赔偿费用支出
A71: 59908 | B71: 对民间非营利组织和群众性自治组织补贴
A72: 59909 | B72: 经常性赠与
A73: 59910 | B73: 资本性赠与
A74: 59999 | B74: 其他支出 | C74: 21,833

Sheet 11
A1: 2024年一般公共预算(基本)支出预算经济分类录入表
F2: 简表11表
F3: 单位：万元
A4: 科目编码 | B4: 科目名称 | C4: 预算数 | E4: 调整预算数
C5: 一般公共预算支出 | D5: 一般公共预算基本支出 | E5: 一般公共预算支出 | F5: 一般公共预算基本支出
B6: 一般公共预算支出 | C6: =SUM(C7,C12,C23,C31,C38,C42,C45,C49,C54,C60,C64,C69,C72) -> 489,086 | D6: 135,620 | E6: 590,936 | F6: 144,374
A7: 501 | B7: 机关工资福利支出 | C7: 78,167 | D7: =SUM(D8:D11) -> 78,167 | E7: 68,761 | F7: =SUM(F8:F11) -> 68,761
A8: 50101 | B8: 工资奖金津补贴 | C8: 59,707 | D8: 59,707 | E8: 49,432 | F8: 49,432
A9: 50102 | B9: 社会保障缴费 | C9: 11,574 | D9: 11,574 | E9: 11,801 | F9: 11,801
A10: 50103 | B10: 住房公积金 | C10: 5,015 | D10: 5,015 | E10: 5,759 | F10: 5,759
A11: 50199 | B11: 其他工资福利支出 | C11: 1,871 | D11: 1,871 | E11: 1,769 | F11: 1,769
A12: 502 | B12: 机关商品和服务支出 | C12: 254,214 | D12: =SUM(D13:D22) -> 3,619 | E12: 154,849 | F12: =SUM(F13:F22) -> 7,393
A13: 50201 | B13: 办公经费 | C13: 9,614 | D13: 1,483 | E13: 6,671 | F13: 3,183
A14: 50202 | B14: 会议费 | C14: 245 | D14: 77 | E14: 169 | F14: 77
A15: 50203 | B15: 培训费 | C15: 377 | D15: 43 | E15: 193 | F15: 43
A16: 50204 | B16: 专用材料购置费 | C16: 572 | E16: 501
A17: 50205 | B17: 委托业务费 | C17: 4,645 | D17: 6 | E17: 2,827 | F17: 6
A18: 50206 | B18: 公务接待费 | C18: 279 | D18: 279 | E18: 333 | F18: 333
A19: 50207 | B19: 因公出国(境)费用
A20: 50208 | B20: 公务用车运行维护费 | C20: 496 | D20: 215 | E20: 235 | F20: 235
A21: 50209 | B21: 维修(护)费 | C21: 858 | D21: 102 | E21: 469 | F21: 102
A22: 50299 | B22: 其他商品和服务支出 | C22: 237,128 | D22: 1,414 | E22: 143,451 | F22: 3,414
A23: 503 | B23: 机关资本性支出 | C23: 7,703 | D23: =SUM(D24:D30) -> 0 | E23: 100,476 | F23: =SUM(F24:F30) -> 0
A24: 50301 | B24: 房屋建筑物购建 | E24: 735
A25: 50302 | B25: 基础设施建设
A26: 50303 | B26: 公务用车购置
A27: 50305 | B27: 土地征迁补偿和安置支出
A28: 50306 | B28: 设备购置 | C28: 16
A29: 50307 | B29: 大型修缮
A30: 50399 | B30: 其他资本性支出 | C30: 7,687 | E30: 99,741
A31: 504 | B31: 机关资本性支出(基本建设) | D31: =SUM(D32:D37) -> 0 | E31: 7,556 | F31: =SUM(F32:F37) -> 0
A32: 50401 | B32: 房屋建筑物购建
A33: 50402 | B33: 基础设施建设
A34: 50403 | B34: 公务用车购置
A35: 50404 | B35: 设备购置
A36: 50405 | B36: 大型修缮
A37: 50499 | B37: 其他资本性支出 | E37: 7,556
A38: 505 | B38: 对事业单位经常性补助 | C38: 57,821 | D38: =SUM(D39:D41) -> 53,834 | E38: 89,386 | F38: =SUM(F39:F41) -> 68,220
A39: 50501 | B39: 工资福利支出 | C39: 51,062 | D39: 51,062 | E39: 65,448 | F39: 65,448
A40: 50502 | B40: 商品和服务支出 | C40: 6,759 | D40: 2,772 | E40: 11,361 | F40: 2,772
A41: 50599 | B41: 其他对事业单位补助 | E41: 12,577
A42: 506 | B42: 对事业单位资本性补助 | C42: 38 | D42: =SUM(D43:D44) -> 0 | E42: 2,975 | F42: =SUM(F43:F44) -> 0
A43: 50601 | B43: 资本性支出 | C43: 38 | E43: 2,975
A44: 50602 | B44: 资本性支出(基本建设)
A45: 507 | B45: 对企业补助 | C45: 866 | D45: =SUM(D46:D48) -> 0 | E45: 3,053 | F45: =SUM(F46:F48) -> 0
A46: 50701 | B46: 费用补贴 | C46: 423 | E46: 93
A47: 50702 | B47: 利息补贴 | E47: 4
A48: 50799 | B48: 其他对企业补助 | C48: 443 | E48: 2,956
A49: 508 | B49: 对企业资本性支出 | C49: 79 | D49: =SUM(D50:D53) -> 0 | F49: =SUM(F50:F53) -> 0
A50: 50803 | B50: 资本金注入
A51: 50804 | B51: 资本金注入(基本建设)
A52: 50805 | B52: 政府投资基金股权投资
A53: 50899 | B53: 其他对企业资本性支出 | C53: 79
A54: 509 | B54: 对个人和家庭的补助 | C54: 5,884 | D54: =SUM(D55:D59) -> 0 | E54: 60,355 | F54: =SUM(F55:F59) -> 0
A55: 50901 | B55: 社会福利和救助 | C55: 1,974 | E55: 1,981
A56: 50902 | B56: 助学金 | C56: 124 | E56: 123
A57: 50903 | B57: 个人农业生产补贴
A58: 50905 | B58: 离退休费 | C58: 135 | E58: 122
A59: 50999 | B59: 其他对个人和家庭的补助 | C59: 3,651 | E59: 58,129
A60: 510 | B60: 对社会保障基金补助 | C60: 63,254 | D60: =SUM(D61:D63) -> 0 | E60: 69,834 | F60: =SUM(F61:F63) -> 0
A61: 51002 | B61: 对社会保险基金补助 | C61: 63,254 | E61: 65,750
A62: 51003 | B62: 补充全国社会保障基金
A63: 51004 | B63: 对机关事业单位职业年金的补助 | C63: 4,084 | E63: 4,084
A64: 511 | B64: 债务利息及费用支出 | C64: 21,055 | D64: =SUM(D65:D68) -> 0 | E64: 11,858 | F64: =SUM(F65:F68) -> 0
A65: 51101 | B65: 国内债务付息 | C65: 21,055 | E65: 11,848
A66: 51102 | B66: 国外债务付息 | E66: 10
A67: 51103 | B67: 国内债务发行费用
A68: 51104 | B68: 国外债务发行费用
A69: 514 | B69: 预备费及预留 | D69: =SUM(D70:D71) -> 0 | F69: =SUM(F70:F71) -> 0
A70: 51401 | B70: 预备费
A71: 51402 | B71: 预留
A72: 599 | B72: 其他支出 | C72: 5 | D72: =SUM(D73:D77) -> 0 | E72: 21,833 | F72: =SUM(F73:F77) -> 0
A73: 59907 | B73: 国家赔偿费用支出
A74: 59908 | B74: 对民间非营利组织和群众性自治组织补贴
A75: 59909 | B75: 经常性赠与
A76: 59910 | B76: 资本性赠与
A77: 59999 | B77: 其他支出 | C77: 5 | E77: 21,833

Sheet 12
A1: 2024年度一般公共预算收入预算变动情况录入表
A2: 简表12表
A3: 单位：万元
A4: 科目编码 | B4: 科目名称 | C4: 预算数 | D4: 变动项目 | H4: 调整预算数
D5: 上级专项调整数 | G5: 增加(减少)预算指标
D6: 小计 | E6: 企业上下划 | F6: 其他
B7: 一般公共预算收入 | C7: =SUM(C8,C29) -> 160,950 | D7: 0 | E7: 0 | F7: 0 | G7: 201 | H7: 161,151
A8: 101 | B8: 税收收入 | C8: =SUM(C9:C28) -> 79,855 | D8: 0 | E8: 0 | F8: 0 | G8: 756 | H8: 80,611
A9: 10101 | B9: 增值税 | C9: 29,087 | D9: =E9+F9 -> 0 | G9: -606 | H9: =C9+D9+G9 -> 28,481
A10: 10102 | B10: 消费税 | D10: 0 | H10: 0
A11: 10104 | B11: 企业所得税 | C11: 4,032 | D11: 0 | G11: -532 | H11: 3,500
A12: 10105 | B12: 企业所得税退税 | D12: 0 | H12: 0
A13: 10106 | B13: 个人所得税 | C13: 1,064 | D13: 0 | G13: 36 | H13: 1,100
A14: 10107 | B14: 资源税 | C14: 9,900 | D14: 0 | G14: -3,400 | H14: 6,500
A15: 10109 | B15: 城市维护建设税 | C15: 3,800 | D15: 0 | G15: 770 | H15: 4,570
A16: 10110 | B16: 房产税 | C16: 4,200 | D16: 0 | G16: 2,550 | H16: 6,750
A17: 10111 | B17: 印花税 | C17: 1,000 | D17: 0 | G17: -350 | H17: 650
A18: 10112 | B18: 城镇土地使用税 | C18: 1,260 | D18: 0 | G18: 1,840 | H18: 3,100
A19: 10113 | B19: 土地增值税 | C19: 12,000 | D19: 0 | G19: -7,600 | H19: 4,400
A20: 10114 | B20: 车船税 | C20: 1,500 | D20: 0 | G20: 150 | H20: 1,650
A21: 10115 | B21: 船舶吨税 | D21: 0 | H21: 0
A22: 10116 | B22: 车辆购置税 | C22: 900 | D22: 0 | H22: 900
A23: 10117 | B23: 关税 | D23: 0 | H23: 0
A24: 10118 | B24: 耕地占用税 | D24: 0 | G24: 12,950 | H24: 12,950
A25: 10119 | B25: 契税 | C25: 11,000 | D25: 0 | G25: -5,000 | H25: 6,000
A26: 10120 | B26: 烟叶税 | D26: 0 | H26: 0
A27: 10121 | B27: 环境保护税 | C27: 112 | D27: 0 | G27: -52 | H27: 60
A28: 10199 | B28: 其他税收收入 | D28: 0 | H28: 0
A29: 103 | B29: 非税收入 | C29: =SUM(C30:C37) -> 81,095 | D29: 0 | E29: 0 | F29: 0 | G29: -555 | H29: 80,540
A30: 10302 | B30: 专项收入 | C30: 3,980 | D30: =E30+F30 -> 0 | H30: =C30+D30+G30 -> 3,980
A31: 10304 | B31: 行政事业性收费收入 | C31: 5,520 | D31: 0 | H31: 5,520
A32: 10305 | B32: 罚没收入 | C32: 7,500 | D32: 0 | G32: 13,500 | H32: 21,000
A33: 10306 | B33: 国有资本经营收入 | D33: 0 | H33: 0
A34: 10307 | B34: 国有资源(资产)有偿使用收入 | C34: 58,000 | D34: 0 | G34: -13,500 | H34: 44,500
A35: 10308 | B35: 捐赠收入 | D35: 0 | H35: 0
A36: 10309 | B36: 政府住房基金收入 | D36: 0 | H36: 0
A37: 10399 | B37: 其他收入 | C37: 6,095 | D37: 0 | G37: -555 | H37: 5,540

Sheet 13
A1: 2024年度一般公共预算支出预算情况表
C2: 简表13表
C3: 单位：万元
A4: 科目编码 | B4: 科目名称 | C4: 预算数
B7: 一般公共预算支出 | C7: =SUM(C8,C37,C47,C53,C65,C76,C87,C94,C116,C131,C146,C153,C162,C168,C176,C180,C186,C196,C200,C204,C209,C217,C218,C221,C225) -> 489086
A8: 201 | B8: 一般公共服务支出 | C8: =SUM(C9:C36) -> 56011
A9: 20101 | B9: 人大事务 | C9: 1057
A10: 20102 | B10: 政协事务 | C10: 634
A11: 20103 | B11: 政府办公厅(室)及相关机构事务 | C11: 34309
A12: 20104 | B12: 发展与改革事务 | C12: 1987
A13: 20105 | B13: 统计信息事务 | C13: 355
A14: 20106 | B14: 财政事务 | C14: 2916
A15: 20107 | B15: 税收事务 | C15: 5500
A16: 20108 | B16: 审计事务 | C16: 560
A17: 20109 | B17: 海关事务
A18: 20111 | B18: 纪检监察事务 | C18: 1756
A19: 20113 | B19: 商贸事务 | C19: 229
A20: 20114 | B20: 知识产权事务
A21: 20123 | B21: 民族事务
A22: 20125 | B22: 港澳台事务
A23: 20126 | B23: 档案事务 | C23: 177
A24: 20128 | B24: 民主党派及工商联事务 | C24: 92
A25: 20129 | B25: 群众团体事务 | C25: 479
A26: 20131 | B26: 党委办公厅(室)及相关机构事务 | C26: 1008
A27: 20132 | B27: 组织事务 | C27: 1016
A28: 20133 | B28: 宣传事务 | C28: 240
A29: 20134 | B29: 统战事务 | C29: 182
A30: 20135 | B30: 对外联络事务
A31: 20136 | B31: 其他共产党事务支出
A32: 20137 | B32: 网信事务 | C32: 104
A33: 20138 | B33: 市场监督管理事务 | C33: 3200
A34: 20139 | B34: 社会工作事务
A35: 20140 | B35: 信访事务 | C35: 200
A36: 20199 | B36: 其他一般公共服务支出 | C36: 10
A37: 202 | B37: 外交支出 | C37: =SUM(C38:C46) -> 0
A38: 20201 | B38: 外交管理事务
A39: 20202 | B39: 驻外机构
A40: 20203 | B40: 对外援助
A41: 20204 | B41: 国际组织
A42: 20205 | B42: 对外合作与交流
A43: 20206 | B43: 对外宣传
A44: 20207 | B44: 边界勘界联检
A45: 20208 | B45: 国际发展合作
A46: 20299 | B46: 其他外交支出
A47: 203 | B47: 国防支出 | C47: =SUM(C48:C52) -> 298
A48: 20301 | B48: 军费
A49: 20304 | B49: 国防科研事业
A50: 20305 | B50: 专项工程
A51: 20306 | B51: 国防动员 | C51: 298
A52: 20399 | B52: 其他国防支出
A53: 204 | B53: 公共安全支出 | C53: =SUM(C54:C64) -> 18236
A54: 20401 | B54: 武装警察部队 | C54: 19
A55: 20402 | B55: 公安 | C55: 17003
A56: 20403 | B56: 国家安全
A57: 20404 | B57: 检察
A58: 20405 | B58: 法院
A59: 20406 | B59: 司法 | C59: 1148
A60: 20407 | B60: 监狱
A61: 20408 | B61: 强制隔离戒毒 | C61: 66
A62: 20409 | B62: 国家保密
A63: 20410 | B63: 缉私警察
A64: 20499 | B64: 其他公共安全支出
A65: 205 | B65: 教育支出 | C65: =SUM(C66:C75) -> 83327
A66: 20501 | B66: 教育管理事务 | C66: 3107
A67: 20502 | B67: 普通教育 | C67: 74756
A68: 20503 | B68: 职业教育 | C68: 4270
A69: 20504 | B69: 成人教育
A70: 20505 | B70: 广播电视教育
A71: 20506 | B71: 留学教育
A72: 20507 | B72: 特殊教育 | C72: 293
A73: 20508 | B73: 进修及培训 | C73: 619
A74: 20509 | B74: 教育费附加安排的支出
A75: 20599 | B75: 其他教育支出 | C75: 282
A76: 206 | B76: 科学技术支出 | C76: =SUM(C77:C86) -> 6319
A77: 20601 | B77: 科学技术管理事务 | C77: 3802
A78: 20602 | B78: 基础研究
A79: 20603 | B79: 应用研究
A80: 20604 | B80: 技术研究与开发
A81: 20605 | B81: 科技条件与服务
A82: 20606 | B82: 社会科学
A83: 20607 | B83: 科学技术普及 | C83: 277
A84: 20608 | B84: 科技交流与合作
A85: 20609 | B85: 科技重大项目
A86: 20699 | B86: 其他科学技术支出 | C86: 2240
A87: 207 | B87: 文化旅游体育与传媒支出 | C87: =SUM(C88:C93) -> 3348
A88: 20701 | B88: 文化和旅游 | C88: 1792
A89: 20702 | B89: 文物 | C89: 103
A90: 20703 | B90: 体育 | C90: 135
A91: 20706 | B91: 新闻出版电影
A92: 20708 | B92: 广播电视 | C92: 1108
A93: 20799 | B93: 其他文化旅游体育与传媒支出 | C93: 210
A94: 208 | B94: 社会保障和就业支出 | C94: =SUM(C95:C115) -> 95684
A95: 20801 | B95: 人力资源和社会保障管理事务 | C95: 2076
A96: 20802 | B96: 民政管理事务 | C96: 2923
A97: 20804 | B97: 补充全国社会保障基金
A98: 20805 | B98: 行政事业单位养老支出 | C98: 47972
A99: 20806 | B99: 企业改革补助
A100: 20807 | B100: 就业补助 | C100: 1000
A101: 20808 | B101: 抚恤 | C101: 5939
A102: 20809 | B102: 退役安置 | C102: 555
A103: 20810 | B103: 社会福利 | C103: 1401
A104: 20811 | B104: 残疾人事业 | C104: 2796
A105: 20816 | B105: 红十字事业 | C105: 80
A106: 20819 | B106: 最低生活保障 | C106: 6500
A107: 20820 | B107: 临时救助 | C107: 3819
A108: 20821 | B108: 特困人员救助供养 | C108: 4800
A109: 20824 | B109: 补充道路交通事故社会救助基金
A110: 20825 | B110: 其他生活救助
A111: 20826 | B111: 财政对基本养老保险基金的补助 | C111: 15340
A112: 20827 | B112: 财政对其他社会保险基金的补助
A113: 20828 | B113: 退役军人管理事务 | C113: 483
A114: 20830 | B114: 财政代缴社会保险费支出
A115: 20899 | B115: 其他社会保障和就业支出
A116: 210 | B116: 卫生健康支出 | C116: =SUM(C117:C130) -> 36113
A117: 21001 | B117: 卫生健康管理事务 | C117: 2166
A118: 21002 | B118: 公立医院 | C118: 2116
A119: 21003 | B119: 基层医疗卫生机构 | C119: 5596
A120: 21004 | B120: 公共卫生 | C120: 8996
A121: 21007 | B121: 计划生育事务 | C121: 5122
A122: 21011 | B122: 行政事业单位医疗 | C122: 85
A123: 21012 | B123: 财政对基本医疗保险基金的补助 | C123: 3789
A124: 21013 | B124: 医疗救助 | C124: 7700
A125: 21014 | B125: 优抚对象医疗
A126: 21015 | B126: 医疗保障管理事务 | C126: 542
A127: 21016 | B127: 老龄卫生健康事务
A128: 21017 | B128: 中医药事务
A129: 21018 | B129: 疾病预防控制事务
A130: 21099 | B130: 其他卫生健康支出 | C130: 1
A131: 211 | B131: 节能环保支出 | C131: =SUM(C132:C145) -> 11672
A132: 21101 | B132: 环境保护管理事务 | C132: 10
A133: 21102 | B133: 环境监测与监察
A134: 21103 | B134: 污染防治 | C134: 7280
A135: 21104 | B135: 自然生态保护 | C135: 1372
A136: 21105 | B136: 森林保护修复
A137: 21107 | B137: 风沙荒漠治理
A138: 21108 | B138: 退牧还草
A139: 21109 | B139: 已垦草原退耕还草
A140: 21110 | B140: 能源节约利用
A141: 21111 | B141: 污染减排 | C141: 3000
A142: 21112 | B142: 可再生能源
A143: 21113 | B143: 循环经济
A144: 21114 | B144: 能源管理事务
A145: 21199 | B145: 其他节能环保支出 | C145: 10
A146: 212 | B146: 城乡社区支出 | C146: =SUM(C147:C152) -> 10751
A147: 21201 | B147: 城乡社区管理事务 | C147: 5057
A148: 21202 | B148: 城乡社区规划与管理 | C148: 69
A149: 21203 | B149: 城乡社区公共设施 | C149: 3724
A150: 21205 | B150: 城乡社区环境卫生 | C150: 1684
A151: 21206 | B151: 建设市场管理与监督 | C151: 217
A152: 21299 | B152: 其他城乡社区支出
A153: 213 | B153: 农林水支出 | C153: =SUM(C154:C161) -> 102046
A154: 21301 | B154: 农业农村 | C154: 63985
A155: 21302 | B155: 林业和草原 | C155: 1117
A156: 21303 | B156: 水利 | C156: 14949
A157: 21305 | B157: 巩固脱贫攻坚成果衔接乡村振兴 | C157: 5945
A158: 21307 | B158: 农村综合改革 | C158: 7694
A159: 21308 | B159: 普惠金融发展支出 | C159: 4856
A160: 21309 | B160: 目标价格补贴 | C160: 3500
A161: 21399 | B161: 其他农林水支出
A162: 214 | B162: 交通运输支出 | C162: =SUM(C163:C167) -> 27174
A163: 21401 | B163: 公路水路运输 | C163: 26574
A164: 21402 | B164: 铁路运输
A165: 21403 | B165: 民用航空运输
A166: 21405 | B166: 邮政业支出
A167: 21499 | B167: 其他交通运输支出 | C167: 600
A168: 215 | B168: 资源勘探工业信息等支出 | C168: =SUM(C169:C175) -> 280
A169: 21501 | B169: 资源勘探开发
A170: 21502 | B170: 制造业
A171: 21503 | B171: 建筑业
A172: 21505 | B172: 工业和信息产业监管 | C172: 280
A173: 21507 | B173: 国有资产监管
A174: 21508 | B174: 支持中小企业发展和管理支出
A175: 21599 | B175: 其他资源勘探工业信息等支出
A176: 216 | B176: 商业服务业等支出 | C176: =SUM(C177:C179) -> 1821
A177: 21602 | B177: 商业流通事务 | C177: 1821
A178: 21606 | B178: 涉外发展服务支出
A179: 21699 | B179: 其他商业服务业等支出
A180: 217 | B180: 金融支出 | C180: =SUM(C181:C185) -> 0
A181: 21701 | B181: 金融部门行政支出
A182: 21702 | B182: 金融部门监管支出
A183: 21703 | B183: 金融发展支出
A184: 21704 | B184: 金融调控支出
A185: 21799 | B185: 其他金融支出
A186: 219 | B186: 援助其他地区支出 | C186: =SUM(C187:C195) -> 0
A187: 21901 | B187: 一般公共服务
A188: 21902 | B188: 教育
A189: 21903 | B189: 文化旅游体育与传媒
A190: 21904 | B190: 卫生健康
A191: 21905 | B191: 节能环保
A192: 21906 | B192: 农业农村
A193: 21907 | B193: 交通运输
A194: 21908 | B194: 住房保障
A195: 21999 | B195: 其他支出
A196: 220 | B196: 自然资源海洋气象等支出 | C196: =SUM(C197:C199) -> 3531
A197: 22001 | B197: 自然资源事务 | C197: 3461
A198: 22005 | B198: 气象事务 | C198: 70
A199: 22099 | B199: 其他自然资源海洋气象等支出
A200: 221 | B200: 住房保障支出 | C200: =SUM(C201:C203) -> 14341
A201: 22101 | B201: 保障性安居工程支出 | C201: 4000
A202: 22102 | B202: 住房改革支出 | C202: 10341
... 26 more rows

Sheet 14
A1: 2024年度政府性基金预算收支及结余情况录入表 | N1: 2024年度政府性基金预算收支及结余情况录入表
M2: 简表14表
M3: 单位：万元
A4: 科目编码 | B4: 收入项目 | C4: 决算数 | D4: 上级补助收入 | E4: 下级上解收入 | F4: 待偿债再融资专项债券上年结余 | G4: 上年结余收入 | H4: 调入资金 | I4: 债务收入 | J4: 债务转贷收入 | K4: 省补助计划单列市收入 | L4: 计划单列市上解省收入 | M4: 动用偿债备付金 | N4: 支出项目 | O4: 决算数 | P4: 补助下级支出 | Q4: 上解上级支出 | R4: 调出资金 | S4: 债务还本支出 | T4: 债务转贷支出 | U4: 省补助计划单列市支出 | V4: 计划单列市上解省支出 | W4: 偿债备付金 | X4: 结余项目 | Y4: 待偿债再融资专项债券结余 | Z4: 年终结余
B6: 政府性基金预算收入 | C6: =SUM(C7:C34) -> 17,114 | D6: 19,430 | E6: 0 | F6: 0 | G6: 7,810 | H6: 0 | I6: 0 | J6: 140,400 | K6: 0 | L6: 0 | M6: 0 | N6: 政府性基金预算支出 | O6: =SUM(O7:O34) -> 105,873 | P6: 0 | Q6: 0 | R6: 0 | S6: 51,050 | T6: 0 | U6: 0 | V6: 0 | W6: 0 | X6: 政府性基金预算结余 | Y6: =SUM(Y7:Y34) -> 0 | Z6: =SUM(C6:M6)-SUM(O6:W6)-Y6 -> 27,831
A7: 1030166 | B7: 核电站乏燃料处理处置基金收入 | N7: 核电站乏燃料处理处置基金支出 | O7: ='08'!C14 -> 0 | X7: 核电站乏燃料处理处置基金结余 | Z7: 0
B8: 国家电影事业发展专项资金相关收入 | D8: 44 | G8: 9 | N8: 国家电影事业发展专项资金相关支出 | O8: ='08'!C29+'08'!C41+'08'!C288+'08'!C305 -> 4 | X8: 国家电影事业发展专项资金相关结余 | Z8: 49
A9: 1030121 | B9: 旅游发展基金收入 | N9: 旅游发展基金支出 | O9: ='08'!C35 -> 0 | X9: 旅游发展基金结余 | Z9: 0
A10: 1030168 | B10: 可再生能源电价附加收入 | N10: 可再生能源电价附加收入安排的支出 | O10: ='08'!C57 -> 0 | X10: 可再生能源电价附加结余 | Z10: 0
A11: 1030175 | B11: 废弃电器电子产品处理基金收入 | N11: 废弃电器电子产品处理基金支出 | O11: ='08'!C62 -> 0 | X11: 废弃电器电子产品处理基金结余 | Z11: 0
B12: 国有土地使用权出让相关收入 | C12: 14,537 | G12: 3,874 | J12: 7,000 | N12: 国有土地使用权出让相关支出 | O12: ='08'!C73+'08'!C89+'08'!C104+'08'!C108+'08'!C121+'08'!C289+'08'!C297+'08'!C299+'08'!C306+'08'!C314+'08'!C316-O13 -> 17,859 | X12: 国有土地使用权出让相关结余 | Z12: 7,552
B13: 国有土地收益基金相关收入 | N13: 国有土地收益基金相关支出 | X13: 国有土地收益基金相关结余 | Z13: 0
B14: 农业土地开发资金相关收入 | N14: 农业土地开发资金相关支出 | O14: ='08'!C93+'08'!C290+'08'!C307 -> 0 | X14: 农业土地开发资金相关结余 | Z14: 0
B15: 城市基础设施配套费相关收入 | C15: 1,275 | G15: 657 | N15: 城市基础设施配套费相关支出 | O15: ='08'!C94+'08'!C112+'08'!C292+'08'!C308 -> 901 | X15: 城市基础设施配套费相关结余 | Z15: 1,031
B16: 污水处理费相关收入 | C16: 1,240 | G16: 537 | N16: 污水处理费相关支出 | O16: ='08'!C100+'08'!C118+'08'!C296+'08'!C313 -> 1,340 | X16: 污水处理费相关结余 | Z16: 437
B17: 大中型水库库区基金相关收入 | N17: 大中型水库库区基金相关支出 | O17: ='08'!C134+'08'!C149+'08'!C291+'08'!C308 -> 0 | X17: 大中型水库库区基金相关结余 | Z17: 0
A18: 1030152 | B18: 三峡水库库区基金收入 | N18: 三峡水库库区基金支出 | O18: ='08'!C139 -> 0 | X18: 三峡水库库区基金结余 | Z18: 0
B19: 国家重大水利工程建设基金相关收入 | G19: 658 | N19: 国家重大水利工程建设基金相关支出 | O19: ='08'!C144+'08'!C152+'08'!C294+'08'!C311 -> 0 | X19: 国家重大水利工程建设基金相关结余 | Z19: 658
A20: 1030149 | B20: 大中型水库移民后期扶持基金收入 | D20: 9,040 | G20: 749 | N20: 大中型水库移民后期扶持基金支出 | O20: ='08'!C157 -> 1,954 | X20: 大中型水库移民后期扶持基金结余 | Z20: 7,835
B21: 小型水库移民扶助基金相关收入 | N21: 小型水库移民扶助基金相关支出 | O21: ='08'!C161+'08'!C165+'08'!C293+'08'!C310 -> 0 | X21: 小型水库移民扶助基金相关结余 | Z21: 0
B22: 海南省高等级公路车辆通行附加费相关收入 | N22: 海南省高等级公路车辆通行附加费相关支出 | O22: ='08'!C173+'08'!C208+'08'!C287+'08'!C304 -> 0 | X22: 海南省高等级公路车辆通行附加费相关结余 | Z22: 0
B23: 车辆通行费相关收入 | C23: 62 | G23: 12 | N23: 车辆通行费相关支出 | O23: ='08'!C178+'08'!C212+'08'!C215+'08'!C295+'08'!C298+'08'!C312+'08'!C315 -> 0 | X23: 车辆通行费相关结余 | Z23: 74
A24: 1030106 | B24: 铁路建设基金收入 | N24: 铁路建设基金支出 | O24: ='08'!C183 -> 0 | X24: 铁路建设基金结余 | Z24: 0
A25: 1030171 | B25: 船舶油污损害赔偿基金收入 | N25: 船舶油污损害赔偿基金支出 | O25: ='08'!C192 -> 0 | X25: 船舶油污损害赔偿基金结余 | Z25: 0
A26: 1030110 | B26: 民航发展基金收入 | N26: 民航发展基金支出 | O26: ='08'!C199 -> 0 | X26: 民航发展基金结余 | Z26: 0
A27: 1030102 | B27: 农网还贷资金收入 | N27: 农网还贷资金支出 | O27: ='08'!C223 -> 0 | X27: 农网还贷资金结余 | Z27: 0
A28: 1030153 | B28: 中央特别国债经营基金收入 | N28: 中央特别国债经营基金支出 | O28: ='08'!C234 -> 0 | X28: 中央特别国债经营基金结余 | Z28: 0
A29: 1030154 | B29: 中央特别国债经营基金财务收入 | N29: 中央特别国债经营基金财务支出 | O29: ='08'!C235 -> 0 | X29: 中央特别国债经营基金财务结余 | Z29: 0
A30: 1030182 | B30: 耕地保护考核奖惩基金收入 | N30: 耕地保护考核奖惩基金支出 | O30: ='08'!C237 -> 0 | X30: 耕地保护考核奖惩基金结余 | Z30: 0
A31: 1030180 | B31: 彩票发行机构和彩票销售机构的业务费用 | G31: 128 | N31: 彩票发行销售机构业务费安排的支出 | O31: ='08'!C258 -> 53 | X31: 彩票发行机构和彩票销售机构的业务费用结余 | Z31: 75
A32: 1030155 | B32: 彩票公益金收入 | D32: 3,692 | G32: 1,186 | N32: 彩票公益金安排的支出 | O32: ='08'!C271 -> 1,667 | X32: 彩票公益金结余 | Z32: 3,211
B33: 超长期特别国债相关收入 | D33: 6,654 | N33: 超长期特别国债安排的支出 | O33: ='08'!C7+'08'!C21+'08'!C45+'08'!C50+'08'!C67+'08'!C130+'08'!C168+'08'!C216+'08'!C227+'08'!C241+'08'!C245+'08'!C249+'08'!C269+'08'!C283 -> 5 | X33: 超长期特别国债相关结余 | Z33: 6,649
B34: 其他政府性基金相关收入 | J34: 133,400 | N34: 其他政府性基金相关支出 | O34: ='08'!C254+'08'!C267+'08'!C300+'08'!C301+'08'!C317+'08'!C318+'08'!C319 -> 82,090 | S34: 51,050 | X34: 其他政府性基金相关结余 | Z34: 260
B35: 其中:抗疫特别国债上年结余收入 | N35: 其中:抗疫特别国债安排的支出 | O35: ='08'!C319 -> 0 | X35: 其中:抗疫特别国债结余
